Workbook

Sheet Rd1
D1: =T42 -> Thorsten | F1: Sp. 1 | K1: =T43 -> Micha | M1: Sp. 2 | R1: =T44 -> Stefan | T1: Sp. 3 | U1: =K45 -> Thorsten
D2: Punkte | E2: 501 | F2: Start | K2: Punkte | L2: 501 | M2: Start | R2: Punkte | S2: 501 | T2: Start | U2: =K46 -> Micha
D3: Geworfen | E3: =SUM(D34) -> 484 | F3: Punkte | K3: Geworfen | L3: =SUM(K34) -> 440 | M3: Punkte | R3: Geworfen | S3: =SUM(R34) -> 430 | T3: Punkte | U3: Stefan
A4: RD 1 | B4: =COUNT(D4)*1 -> 1 | C4: =COUNT(D4)*3 -> 3 | D4: 22 | E4: =SUM(E2-E3) -> 17 | F4: Rest | H4: RD 1 | I4: =COUNT(K4)*1 -> 1 | J4: =COUNT(K4)*3 -> 3 | K4: 33 | L4: =SUM(L2-L3) -> 61 | M4: Rest | O4: RD 1 | P4: =COUNT(R4)*1 -> 1 | Q4: =COUNT(R4)*3 -> 3 | R4: 44 | S4: =SUM(S2-S3) -> 71 | T4: Rest
A5: RD 2 | B5: 1 | C5: 3 | D5: 55 | H5: RD 2 | I5: 1 | J5: 3 | K5: 66 | O5: RD 2 | P5: 1 | Q5: 3 | R5: 56
A6: RD 3 | B6: 1 | C6: 3 | D6: 99 | E6: ø pro Spiel | F6: =SUM(E3)/B34 -> 69.14285714 | H6: RD 3 | I6: 1 | J6: 3 | K6: 66 | L6: ø pro Spiel | M6: =SUM(L3)/I34 -> 62.85714286 | O6: RD 3 | P6: 1 | Q6: 3 | R6: 66 | S6: ø pro Spiel | T6: =SUM(S3)/P34 -> 71.66666667
A7: RD 4 | B7: 1 | C7: 3 | D7: 99 | E7: ø pro Pfeil | F7: =SUM(E3)/C34 -> 23.04761905 | H7: RD 4 | I7: 1 | J7: 3 | K7: 66 | L7: ø pro Pfeil | M7: =SUM(L3)/J34 -> 20.95238095 | O7: RD 4 | P7: 1 | Q7: 3 | R7: 99 | S7: ø pro Pfeil | T7: =SUM(S3)/Q34 -> 23.88888889
A8: RD 5 | B8: 1 | C8: 3 | D8: 77 | E8: Average | H8: RD 5 | I8: 1 | J8: 3 | K8: 55 | L8: Average | O8: RD 5 | P8: 1 | Q8: 3 | R8: 66 | S8: Average
A9: RD 6 | B9: 1 | C9: 3 | D9: 33 | E9: =SUM(F6) -> 69.14285714 | H9: RD 6 | I9: 1 | J9: 3 | K9: 55 | L9: =SUM(M6) -> 62.85714286 | O9: RD 6 | P9: 1 | Q9: 3 | R9: 99 | S9: =SUM(T6) -> 71.66666667
A10: RD 7 | B10: 1 | C10: 3 | D10: 99 | H10: RD 7 | I10: 1 | J10: 3 | K10: 99 | O10: RD 7 | P10: 0 | Q10: 0
A11: RD 8 | B11: 0 | C11: 0 | E11: =IF(F6<40,"Nicht Gut","") ->  | H11: RD 8 | I11: 0 | J11: 0 | L11: =IF(M6<40,"Nicht Gut","") ->  | O11: RD 8 | P11: 0 | Q11: 0 | S11: =IF(T6<40,"Nicht Gut","") -> 
A12: RD 9 | B12: 0 | C12: 0 | H12: RD 9 | I12: 0 | J12: 0 | O12: RD 9 | P12: 0 | Q12: 0
A13: RD 10 | B13: 0 | C13: 0 | H13: RD 10 | I13: 0 | J13: 0 | O13: RD 10 | P13: 0 | Q13: 0 | Y13: 501
A14: RD 11 | B14: 0 | C14: 0 | E14: =IF(AND(F6>=40,F6<=50),"GUT","") ->  | H14: RD 11 | I14: 0 | J14: 0 | L14: =IF(AND(M6>=40,M6<=50),"GUT","") ->  | O14: RD 11 | P14: 0 | Q14: 0 | S14: =IF(AND(T6>=40,T6<=50),"GUT","") ->  | V14: A | W14: =F18 -> 17 | X14: =SUM(M18+T18)/2 -> 66
A15: RD 12 | B15: 0 | C15: 0 | H15: RD 12 | I15: 0 | J15: 0 | O15: RD 12 | P15: 0 | Q15: 0 | V15: B | W15: =SUM(M18) -> 61 | X15: =SUM(F18+T18)/2 -> 44
A16: RD 13 | B16: 0 | C16: 0 | H16: RD 13 | I16: 0 | J16: 0 | O16: RD 13 | P16: 0 | Q16: 0 | V16: C | W16: =SUM(T18) -> 71 | X16: =SUM(F18+M18)/2 -> 39
A17: RD 14 | B17: 0 | C17: 0 | H17: RD 14 | I17: 0 | J17: 0 | O17: RD 14 | P17: 0 | Q17: 0
A18: RD 15 | B18: 0 | C18: 0 | E18: =D1 -> Thorsten | F18: =E4 -> 17 | H18: RD 15 | I18: 0 | J18: 0 | L18: =K1 -> Micha | M18: =L4 -> 61 | O18: RD 15 | P18: 0 | Q18: 0 | S18: =R1 -> Stefan | T18: =S4 -> 71
A19: RD 16 | B19: 0 | C19: 0 | H19: RD 16 | I19: 0 | J19: 0 | O19: RD 16 | P19: 0 | Q19: 0
A20: RD 17 | B20: 0 | C20: 0 | E20: =IF(F6>50,"Sehr Gut","") -> Sehr Gut | H20: RD 17 | I20: 0 | J20: 0 | L20: =IF(M6>50,"Sehr Gut","") -> Sehr Gut | O20: RD 17 | P20: 0 | Q20: 0 | S20: =IF(T6>50,"Sehr Gut","") -> Sehr Gut
A21: RD 18 | B21: 0 | C21: 0 | H21: RD 18 | I21: 0 | J21: 0 | O21: RD 18 | P21: 0 | Q21: 0
A22: RD 19 | B22: 0 | C22: 0 | H22: RD 19 | I22: 0 | J22: 0 | O22: RD 19 | P22: 0 | Q22: 0
A23: RD 20 | B23: 0 | C23: 0 | H23: RD 20 | I23: 0 | J23: 0 | O23: RD 20 | P23: 0 | Q23: 0
A24: RD 21 | B24: 0 | C24: 0 | H24: RD 21 | I24: 0 | J24: 0 | O24: RD 21 | P24: 0 | Q24: 0
A25: RD 22 | B25: 0 | C25: 0 | H25: RD 22 | I25: 0 | J25: 0 | O25: RD 22 | P25: 0 | Q25: 0
A26: RD 23 | B26: 0 | C26: 0 | H26: RD 23 | I26: 0 | J26: 0 | O26: RD 23 | P26: 0 | Q26: 0
A27: RD 24 | B27: 0 | C27: 0 | H27: RD 24 | I27: 0 | J27: 0 | O27: RD 24 | P27: 0 | Q27: 0
A28: RD 25 | B28: 0 | C28: 0 | H28: RD 25 | I28: 0 | J28: 0 | O28: RD 25 | P28: 0 | Q28: 0
A29: RD 26 | B29: 0 | C29: 0 | H29: RD 26 | I29: 0 | J29: 0 | O29: RD 26 | P29: 0 | Q29: 0
A30: RD 27 | B30: 0 | C30: 0 | H30: RD 27 | I30: 0 | J30: 0 | O30: RD 27 | P30: 0 | Q30: 0
A31: RD 28 | B31: 0 | C31: 0 | H31: RD 28 | I31: 0 | J31: 0 | O31: RD 28 | P31: 0 | Q31: 0
A32: RD 29 | B32: 0 | C32: 0 | E32: =IF(E4=0,"Sieg","") ->  | H32: RD 29 | I32: 0 | J32: 0 | L32: =IF(L4=0,"Sieg","") ->  | O32: RD 29 | P32: 0 | Q32: 0 | S32: =IF(S4=0,"Sieg","") -> 
A33: RD 30 | B33: 0 | C33: 0 | H33: RD 30 | I33: 0 | J33: 0 | O33: RD 30 | P33: 0 | Q33: 0
B34: =SUM(B4:B33) -> 7 | C34: =SUM(C4:C33) -> 21 | D34: =SUM(D4:D33) -> 484 | E34: =SUM(D4:D32) -> 484 | I34: =SUM(I4:I33) -> 7 | J34: =SUM(J4:J33) -> 21 | K34: =SUM(K4:K33) -> 440 | L34: =SUM(K4:K32) -> 440 | P34: =SUM(P4:P33) -> 6 | Q34: =SUM(Q4:Q33) -> 18 | R34: =SUM(R4:R33) -> 430 | S34: =SUM(R4:R32) -> 430
W38: Vincent
W39: Anja
W40: Erich
S41: =RAND() -> 0.09185986768 | W41: Siggi
S42: =RAND() -> 0.7956099908 | T42: Thorsten | W42: Ralf M.
S43: =RAND() -> 0.08034755 | T43: Micha | W43: Ralf Kl.
S44: =RAND() -> 0.265098246 | T44: Stefan | W44: Volker
D45: =D1 -> Thorsten | F45: =SUM(D34) -> 484 | K45: =INDEX(D45:E47,MATCH(MAX(F45:F47),F45:F47,0),1) -> Thorsten | W45: Rene
D46: =K1 -> Micha | F46: =SUM(K34) -> 440 | K46: =INDEX(D45:E47,MATCH(MEDIAN(F45:F47),F45:F47,0),1) -> Micha | W46: Nicole
D47: =R1 -> Stefan | F47: =SUM(S3) -> 430 | K47: =INDEX(D45:E47,MATCH(MIN(F45:F47),F45:F47,0),1) -> Stefan | W47: Frank
D48: MAX(B2:B7 | F48: =MAX(F45:F47) -> 484 | W48: Rosi
W49: Werner
W50: Gast
W51: Dirk B.
W52: Stefan
W53: Micha
W54: Thorsten

Sheet Rd2
D1: ='Rd1'!U3 -> Stefan | F1: Sp. 1 | K1: ='Rd1'!U2 -> Micha | M1: Sp. 2 | R1: ='Rd1'!U1 -> Thorsten | T1: Sp. 3 | U1: =K45 -> Stefan
D2: Punkte | E2: 501 | F2: Start | K2: Punkte | L2: 501 | M2: Start | R2: Punkte | S2: 501 | T2: Start | U2: =K46 -> Stefan
D3: Geworfen | E3: =SUM(D34) -> 0 | F3: Punkte | K3: Geworfen | L3: =SUM(K34) -> 0 | M3: Punkte | R3: Geworfen | S3: =SUM(R34) -> 0 | T3: Punkte | U3: Stefan
A4: RD 1 | B4: =COUNT(D4)*1 -> 0 | C4: =COUNT(D4)*3 -> 0 | E4: =SUM(E2)-E3 -> 501 | F4: Rest | H4: RD 1 | I4: =COUNT(K4)*1 -> 0 | J4: =COUNT(K4)*3 -> 0 | L4: =SUM(L2-L3) -> 501 | M4: Rest | O4: RD 1 | P4: =COUNT(R4)*1 -> 0 | Q4: =COUNT(R4)*3 -> 0 | S4: =SUM(S2-S3) -> 501 | T4: Rest
A5: RD 2 | B5: 0 | C5: 0 | H5: RD 2 | I5: 0 | J5: 0 | O5: RD 2 | P5: 0 | Q5: 0
A6: RD 3 | B6: 0 | C6: 0 | E6: ø pro Spiel | F6: =SUM(E3)/B34 ->  | H6: RD 3 | I6: 0 | J6: 0 | L6: ø pro Spiel | M6: =SUM(L3)/I34 ->  | O6: RD 3 | P6: 0 | Q6: 0 | S6: ø pro Spiel | T6: =SUM(S3)/P34 -> 
A7: RD 4 | B7: 0 | C7: 0 | E7: ø pro Pfeil | F7: =SUM(E3)/C34 ->  | H7: RD 4 | I7: 0 | J7: 0 | L7: ø pro Pfeil | M7: =SUM(L3)/J34 ->  | O7: RD 4 | P7: 0 | Q7: 0 | S7: ø pro Pfeil | T7: =SUM(S3)/Q34 -> 
A8: RD 5 | B8: 0 | C8: 0 | E8: Average | H8: RD 5 | I8: 0 | J8: 0 | L8: Average | O8: RD 5 | P8: 0 | Q8: 0 | S8: Average
A9: RD 6 | B9: 0 | C9: 0 | E9: =SUM(F6) ->  | H9: RD 6 | I9: 0 | J9: 0 | L9: =SUM(M6) ->  | O9: RD 6 | P9: 0 | Q9: 0 | S9: =SUM(T6) -> 
A10: RD 7 | B10: 0 | C10: 0 | H10: RD 7 | I10: 0 | J10: 0 | O10: RD 7 | P10: 0 | Q10: 0
A11: RD 8 | B11: 0 | C11: 0 | E11: =IF(F6<40,"Nicht Gut","") ->  | H11: RD 8 | I11: 0 | J11: 0 | L11: =IF(M6<40,"Nicht Gut","") ->  | O11: RD 8 | P11: 0 | Q11: 0 | S11: =IF(T6<40,"Nicht Gut","") -> 
A12: RD 9 | B12: 0 | C12: 0 | H12: RD 9 | I12: 0 | J12: 0 | O12: RD 9 | P12: 0 | Q12: 0
A13: RD 10 | B13: 0 | C13: 0 | H13: RD 10 | I13: 0 | J13: 0 | O13: RD 10 | P13: 0 | Q13: 0
A14: RD 11 | B14: 0 | C14: 0 | E14: =IF(F6>40,"Gut","") ->  | H14: RD 11 | I14: 0 | J14: 0 | L14: =IF(M6>40,"Gut","") ->  | O14: RD 11 | P14: 0 | Q14: 0 | S14: =IF(T6>40,"Gut","") -> 
A15: RD 12 | B15: 0 | C15: 0 | H15: RD 12 | I15: 0 | J15: 0 | O15: RD 12 | P15: 0 | Q15: 0
A16: RD 13 | B16: 0 | C16: 0 | H16: RD 13 | I16: 0 | J16: 0 | O16: RD 13 | P16: 0 | Q16: 0
A17: RD 14 | B17: 0 | C17: 0 | H17: RD 14 | I17: 0 | J17: 0 | O17: RD 14 | P17: 0 | Q17: 0
A18: RD 15 | B18: 0 | C18: 0 | E18: =D1 -> Stefan | F18: =E4 -> 501 | H18: RD 15 | I18: 0 | J18: 0 | L18: =K1 -> Micha | M18: =L4 -> 501 | O18: RD 15 | P18: 0 | Q18: 0 | S18: =R1 -> Thorsten | T18: =S4 -> 501
A19: RD 16 | B19: 0 | C19: 0 | H19: RD 16 | I19: 0 | J19: 0 | O19: RD 16 | P19: 0 | Q19: 0
A20: RD 17 | B20: 0 | C20: 0 | E20: =IF(F6>50,"Sehr Gut","") ->  | H20: RD 17 | I20: 0 | J20: 0 | L20: =IF(M6>50,"Sehr Gut","") ->  | O20: RD 17 | P20: 0 | Q20: 0 | S20: =IF(T6>50,"Sehr Gut","") -> 
A21: RD 18 | B21: 0 | C21: 0 | H21: RD 18 | I21: 0 | J21: 0 | O21: RD 18 | P21: 0 | Q21: 0
A22: RD 19 | B22: 0 | C22: 0 | H22: RD 19 | I22: 0 | J22: 0 | O22: RD 19 | P22: 0 | Q22: 0
A23: RD 20 | B23: 0 | C23: 0 | H23: RD 20 | I23: 0 | J23: 0 | O23: RD 20 | P23: 0 | Q23: 0
A24: RD 21 | B24: 0 | C24: 0 | H24: RD 21 | I24: 0 | J24: 0 | O24: RD 21 | P24: 0 | Q24: 0
A25: RD 22 | B25: 0 | C25: 0 | H25: RD 22 | I25: 0 | J25: 0 | O25: RD 22 | P25: 0 | Q25: 0
A26: RD 23 | B26: 0 | C26: 0 | H26: RD 23 | I26: 0 | J26: 0 | O26: RD 23 | P26: 0 | Q26: 0
A27: RD 24 | B27: 0 | C27: 0 | H27: RD 24 | I27: 0 | J27: 0 | O27: RD 24 | P27: 0 | Q27: 0
A28: RD 25 | B28: 0 | C28: 0 | H28: RD 25 | I28: 0 | J28: 0 | O28: RD 25 | P28: 0 | Q28: 0
A29: RD 26 | B29: 0 | C29: 0 | H29: RD 26 | I29: 0 | J29: 0 | O29: RD 26 | P29: 0 | Q29: 0
A30: RD 27 | B30: 0 | C30: 0 | H30: RD 27 | I30: 0 | J30: 0 | O30: RD 27 | P30: 0 | Q30: 0
A31: RD 28 | B31: 0 | C31: 0 | H31: RD 28 | I31: 0 | J31: 0 | O31: RD 28 | P31: 0 | Q31: 0
A32: RD 29 | B32: 0 | C32: 0 | E32: =IF(E4=0,"Sieg","") ->  | H32: RD 29 | I32: 0 | J32: 0 | L32: =IF(L4=0,"Sieg","") ->  | O32: RD 29 | P32: 0 | Q32: 0 | S32: =IF(S4=0,"Sieg","") -> 
A33: RD 30 | B33: 0 | C33: 0 | H33: RD 30 | I33: 0 | J33: 0 | O33: RD 30 | P33: 0 | Q33: 0
B34: =SUM(B4:B33) -> 0 | C34: =SUM(C4:C33) -> 0 | D34: =SUM(D4:D33) -> 0 | E34: =SUM(D4:D32) -> 0 | I34: =SUM(I4:I33) -> 0 | J34: =SUM(J4:J33) -> 0 | K34: =SUM(K4:K33) -> 0 | L34: =SUM(K4:K32) -> 0 | P34: =SUM(P4:P33) -> 0 | Q34: =SUM(Q4:Q33) -> 0 | R34: =SUM(R4:R33) -> 0 | S34: =SUM(R4:R32) -> 0
D45: =D1 -> Stefan | F45: =SUM(D34) -> 0 | K45: =INDEX(D45:E47,MATCH(MAX(F45:F47),F45:F47,0),1) -> Stefan
D46: =K1 -> Micha | F46: =SUM(K34) -> 0 | K46: =INDEX(D45:E47,MATCH(MEDIAN(F45:F47),F45:F47,0),1) -> Stefan
D47: =R1 -> Thorsten | F47: =SUM(S3) -> 0 | K47: =INDEX(D45:E47,MATCH(MIN(F45:F47),F45:F47,0),1) -> Stefan
D48: MAX(B2:B7 | F48: =MAX(F45:F47) -> 0

Sheet Rd3
D1: ='Rd2'!U3 -> Stefan | F1: Sp. 1 | K1: ='Rd2'!U2 -> Stefan | M1: Sp. 2 | R1: ='Rd2'!U1 -> Stefan | T1: Sp. 3 | U1: =K45 -> Stefan
D2: Punkte | E2: 501 | F2: Start | K2: Punkte | L2: 501 | M2: Start | R2: Punkte | S2: 501 | T2: Start | U2: =K46 -> Stefan
D3: Geworfen | E3: =SUM(D34) -> 0 | F3: Punkte | K3: Geworfen | L3: =SUM(K34) -> 0 | M3: Punkte | R3: Geworfen | S3: =SUM(R34) -> 0 | T3: Punkte | U3: Stefan
A4: RD 1 | B4: =COUNT(D4)*1 -> 0 | C4: =COUNT(D4)*3 -> 0 | E4: =SUM(E2-E3) -> 501 | F4: Rest | H4: RD 1 | I4: =COUNT(K4)*1 -> 0 | J4: =COUNT(K4)*3 -> 0 | L4: =SUM(L2-L3) -> 501 | M4: Rest | O4: RD 1 | P4: =COUNT(R4)*1 -> 0 | Q4: =COUNT(R4)*3 -> 0 | S4: =SUM(S2-S3) -> 501 | T4: Rest
A5: RD 2 | B5: 0 | C5: 0 | H5: RD 2 | I5: 0 | J5: 0 | O5: RD 2 | P5: 0 | Q5: 0
A6: RD 3 | B6: 0 | C6: 0 | E6: ø pro Spiel | F6: =SUM(E3)/B34 ->  | H6: RD 3 | I6: 0 | J6: 0 | L6: ø pro Spiel | M6: =SUM(L3)/I34 ->  | O6: RD 3 | P6: 0 | Q6: 0 | S6: ø pro Spiel | T6: =SUM(S3)/P34 -> 
A7: RD 4 | B7: 0 | C7: 0 | E7: ø pro Pfeil | F7: =SUM(E3)/C34 ->  | H7: RD 4 | I7: 0 | J7: 0 | L7: ø pro Pfeil | M7: =SUM(L3)/J34 ->  | O7: RD 4 | P7: 0 | Q7: 0 | S7: ø pro Pfeil | T7: =SUM(S3)/Q34 -> 
A8: RD 5 | B8: 0 | C8: 0 | E8: Average | H8: RD 5 | I8: 0 | J8: 0 | L8: Average | O8: RD 5 | P8: 0 | Q8: 0 | S8: Average
A9: RD 6 | B9: 0 | C9: 0 | E9: =SUM(F6) ->  | H9: RD 6 | I9: 0 | J9: 0 | L9: =SUM(M6) ->  | O9: RD 6 | P9: 0 | Q9: 0 | S9: =SUM(T6) -> 
A10: RD 7 | B10: 0 | C10: 0 | H10: RD 7 | I10: 0 | J10: 0 | O10: RD 7 | P10: 0 | Q10: 0
A11: RD 8 | B11: 0 | C11: 0 | E11: =IF(F6<40,"Nicht Gut","") ->  | H11: RD 8 | I11: 0 | J11: 0 | L11: =IF(M6<40,"Nicht Gut","") ->  | O11: RD 8 | P11: 0 | Q11: 0 | S11: =IF(T6<40,"Nicht Gut","") -> 
A12: RD 9 | B12: 0 | C12: 0 | H12: RD 9 | I12: 0 | J12: 0 | O12: RD 9 | P12: 0 | Q12: 0
A13: RD 10 | B13: 0 | C13: 0 | H13: RD 10 | I13: 0 | J13: 0 | O13: RD 10 | P13: 0 | Q13: 0
A14: RD 11 | B14: 0 | C14: 0 | E14: =IF(F6>40,"Gut","") ->  | H14: RD 11 | I14: 0 | J14: 0 | L14: =IF(M6>40,"Gut","") ->  | O14: RD 11 | P14: 0 | Q14: 0 | S14: =IF(T6>40,"Gut","") -> 
A15: RD 12 | B15: 0 | C15: 0 | H15: RD 12 | I15: 0 | J15: 0 | O15: RD 12 | P15: 0 | Q15: 0
A16: RD 13 | B16: 0 | C16: 0 | H16: RD 13 | I16: 0 | J16: 0 | O16: RD 13 | P16: 0 | Q16: 0
A17: RD 14 | B17: 0 | C17: 0 | H17: RD 14 | I17: 0 | J17: 0 | O17: RD 14 | P17: 0 | Q17: 0
A18: RD 15 | B18: 0 | C18: 0 | E18: =D1 -> Stefan | F18: =E4 -> 501 | H18: RD 15 | I18: 0 | J18: 0 | L18: =K1 -> Stefan | M18: =L4 -> 501 | O18: RD 15 | P18: 0 | Q18: 0 | S18: =R1 -> Stefan | T18: =S4 -> 501
A19: RD 16 | B19: 0 | C19: 0 | H19: RD 16 | I19: 0 | J19: 0 | O19: RD 16 | P19: 0 | Q19: 0
A20: RD 17 | B20: 0 | C20: 0 | E20: =IF(F6>50,"Sehr Gut","") ->  | H20: RD 17 | I20: 0 | J20: 0 | L20: =IF(M6>50,"Sehr Gut","") ->  | O20: RD 17 | P20: 0 | Q20: 0 | S20: =IF(T6>50,"Sehr Gut","") -> 
A21: RD 18 | B21: 0 | C21: 0 | H21: RD 18 | I21: 0 | J21: 0 | O21: RD 18 | P21: 0 | Q21: 0
A22: RD 19 | B22: 0 | C22: 0 | H22: RD 19 | I22: 0 | J22: 0 | O22: RD 19 | P22: 0 | Q22: 0
A23: RD 20 | B23: 0 | C23: 0 | H23: RD 20 | I23: 0 | J23: 0 | O23: RD 20 | P23: 0 | Q23: 0
A24: RD 21 | B24: 0 | C24: 0 | H24: RD 21 | I24: 0 | J24: 0 | O24: RD 21 | P24: 0 | Q24: 0
A25: RD 22 | B25: 0 | C25: 0 | H25: RD 22 | I25: 0 | J25: 0 | O25: RD 22 | P25: 0 | Q25: 0
A26: RD 23 | B26: 0 | C26: 0 | H26: RD 23 | I26: 0 | J26: 0 | O26: RD 23 | P26: 0 | Q26: 0
A27: RD 24 | B27: 0 | C27: 0 | H27: RD 24 | I27: 0 | J27: 0 | O27: RD 24 | P27: 0 | Q27: 0
A28: RD 25 | B28: 0 | C28: 0 | H28: RD 25 | I28: 0 | J28: 0 | O28: RD 25 | P28: 0 | Q28: 0
A29: RD 26 | B29: 0 | C29: 0 | H29: RD 26 | I29: 0 | J29: 0 | O29: RD 26 | P29: 0 | Q29: 0
A30: RD 27 | B30: 0 | C30: 0 | H30: RD 27 | I30: 0 | J30: 0 | O30: RD 27 | P30: 0 | Q30: 0
A31: RD 28 | B31: 0 | C31: 0 | H31: RD 28 | I31: 0 | J31: 0 | O31: RD 28 | P31: 0 | Q31: 0
A32: RD 29 | B32: 0 | C32: 0 | E32: =IF(E4=0,"Sieg","") ->  | H32: RD 29 | I32: 0 | J32: 0 | L32: =IF(L4=0,"Sieg","") ->  | O32: RD 29 | P32: 0 | Q32: 0 | S32: =IF(S4=0,"Sieg","") -> 
A33: RD 30 | B33: 0 | C33: 0 | H33: RD 30 | I33: 0 | J33: 0 | O33: RD 30 | P33: 0 | Q33: 0
B34: =SUM(B4:B33) -> 0 | C34: =SUM(C4:C33) -> 0 | D34: =SUM(D4:D33) -> 0 | E34: =SUM(D4:D32) -> 0 | I34: =SUM(I4:I33) -> 0 | J34: =SUM(J4:J33) -> 0 | K34: =SUM(K4:K33) -> 0 | L34: =SUM(K4:K32) -> 0 | P34: =SUM(P4:P33) -> 0 | Q34: =SUM(Q4:Q33) -> 0 | R34: =SUM(R4:R33) -> 0 | S34: =SUM(R4:R32) -> 0
D45: =D1 -> Stefan | F45: =SUM(D34) -> 0 | K45: =INDEX(D45:E47,MATCH(MAX(F45:F47),F45:F47,0),1) -> Stefan
D46: =K1 -> Stefan | F46: =SUM(K34) -> 0 | K46: =INDEX(D45:E47,MATCH(MEDIAN(F45:F47),F45:F47,0),1) -> Stefan
D47: =R1 -> Stefan | F47: =SUM(S3) -> 0 | K47: =INDEX(D45:E47,MATCH(MIN(F45:F47),F45:F47,0),1) -> Stefan
D48: MAX(B2:B7 | F48: =MAX(F45:F47) -> 0

Sheet Rd4
D1: ='Rd3'!U3 -> Stefan | F1: Sp. 1 | K1: ='Rd3'!U2 -> Stefan | M1: Sp. 2 | R1: ='Rd3'!U1 -> Stefan | T1: Sp. 3 | U1: =K45 -> Stefan
D2: Punkte | E2: 501 | F2: Start | K2: Punkte | L2: 501 | M2: Start | R2: Punkte | S2: 501 | T2: Start | U2: =K46 -> Stefan
D3: Geworfen | E3: =SUM(D34) -> 0 | F3: Punkte | K3: Geworfen | L3: =SUM(K34) -> 0 | M3: Punkte | R3: Geworfen | S3: =SUM(R34) -> 0 | T3: Punkte | U3: Stefan
A4: RD 1 | B4: =COUNT(D4)*1 -> 0 | C4: =COUNT(D4)*3 -> 0 | E4: =SUM(E2-E3) -> 501 | F4: Rest | H4: RD 1 | I4: =COUNT(K4)*1 -> 0 | J4: =COUNT(K4)*3 -> 0 | L4: =SUM(L2-L3) -> 501 | M4: Rest | O4: RD 1 | P4: =COUNT(R4)*1 -> 0 | Q4: =COUNT(R4)*3 -> 0 | S4: =SUM(S2-S3) -> 501 | T4: Rest
A5: RD 2 | B5: 0 | C5: 0 | H5: RD 2 | I5: 0 | J5: 0 | O5: RD 2 | P5: 0 | Q5: 0
A6: RD 3 | B6: 0 | C6: 0 | E6: ø pro Spiel | F6: =SUM(E3)/B34 ->  | H6: RD 3 | I6: 0 | J6: 0 | L6: ø pro Spiel | M6: =SUM(L3)/I34 ->  | O6: RD 3 | P6: 0 | Q6: 0 | S6: ø pro Spiel | T6: =SUM(S3)/P34 -> 
A7: RD 4 | B7: 0 | C7: 0 | E7: ø pro Pfeil | F7: =SUM(E3)/C34 ->  | H7: RD 4 | I7: 0 | J7: 0 | L7: ø pro Pfeil | M7: =SUM(L3)/J34 ->  | O7: RD 4 | P7: 0 | Q7: 0 | S7: ø pro Pfeil | T7: =SUM(S3)/Q34 -> 
A8: RD 5 | B8: 0 | C8: 0 | E8: Average | H8: RD 5 | I8: 0 | J8: 0 | L8: Average | O8: RD 5 | P8: 0 | Q8: 0 | S8: Average
A9: RD 6 | B9: 0 | C9: 0 | E9: =SUM(F6) ->  | H9: RD 6 | I9: 0 | J9: 0 | L9: =SUM(M6) ->  | O9: RD 6 | P9: 0 | Q9: 0 | S9: =SUM(T6) -> 
A10: RD 7 | B10: 0 | C10: 0 | H10: RD 7 | I10: 0 | J10: 0 | O10: RD 7 | P10: 0 | Q10: 0
A11: RD 8 | B11: 0 | C11: 0 | E11: =IF(F6<40,"Nicht Gut","") ->  | H11: RD 8 | I11: 0 | J11: 0 | L11: =IF(M6<40,"Nicht Gut","") ->  | O11: RD 8 | P11: 0 | Q11: 0 | S11: =IF(T6<40,"Nicht Gut","") -> 
A12: RD 9 | B12: 0 | C12: 0 | H12: RD 9 | I12: 0 | J12: 0 | O12: RD 9 | P12: 0 | Q12: 0
A13: RD 10 | B13: 0 | C13: 0 | H13: RD 10 | I13: 0 | J13: 0 | O13: RD 10 | P13: 0 | Q13: 0
A14: RD 11 | B14: 0 | C14: 0 | E14: =IF(F6>40,"Gut","") ->  | H14: RD 11 | I14: 0 | J14: 0 | L14: =IF(M6>40,"Gut","") ->  | O14: RD 11 | P14: 0 | Q14: 0 | S14: =IF(T6>40,"Gut","") -> 
A15: RD 12 | B15: 0 | C15: 0 | H15: RD 12 | I15: 0 | J15: 0 | O15: RD 12 | P15: 0 | Q15: 0
A16: RD 13 | B16: 0 | C16: 0 | H16: RD 13 | I16: 0 | J16: 0 | O16: RD 13 | P16: 0 | Q16: 0
A17: RD 14 | B17: 0 | C17: 0 | H17: RD 14 | I17: 0 | J17: 0 | O17: RD 14 | P17: 0 | Q17: 0
A18: RD 15 | B18: 0 | C18: 0 | E18: =D1 -> Stefan | F18: =E4 -> 501 | H18: RD 15 | I18: 0 | J18: 0 | L18: =K1 -> Stefan | M18: =L4 -> 501 | O18: RD 15 | P18: 0 | Q18: 0 | S18: =R1 -> Stefan | T18: =S4 -> 501
A19: RD 16 | B19: 0 | C19: 0 | H19: RD 16 | I19: 0 | J19: 0 | O19: RD 16 | P19: 0 | Q19: 0
A20: RD 17 | B20: 0 | C20: 0 | E20: =IF(F6>50,"Sehr Gut","") ->  | H20: RD 17 | I20: 0 | J20: 0 | L20: =IF(M6>50,"Sehr Gut","") ->  | O20: RD 17 | P20: 0 | Q20: 0 | S20: =IF(T6>50,"Sehr Gut","") -> 
A21: RD 18 | B21: 0 | C21: 0 | H21: RD 18 | I21: 0 | J21: 0 | O21: RD 18 | P21: 0 | Q21: 0
A22: RD 19 | B22: 0 | C22: 0 | H22: RD 19 | I22: 0 | J22: 0 | O22: RD 19 | P22: 0 | Q22: 0
A23: RD 20 | B23: 0 | C23: 0 | H23: RD 20 | I23: 0 | J23: 0 | O23: RD 20 | P23: 0 | Q23: 0
A24: RD 21 | B24: 0 | C24: 0 | H24: RD 21 | I24: 0 | J24: 0 | O24: RD 21 | P24: 0 | Q24: 0
A25: RD 22 | B25: 0 | C25: 0 | H25: RD 22 | I25: 0 | J25: 0 | O25: RD 22 | P25: 0 | Q25: 0
A26: RD 23 | B26: 0 | C26: 0 | H26: RD 23 | I26: 0 | J26: 0 | O26: RD 23 | P26: 0 | Q26: 0
A27: RD 24 | B27: 0 | C27: 0 | H27: RD 24 | I27: 0 | J27: 0 | O27: RD 24 | P27: 0 | Q27: 0
A28: RD 25 | B28: 0 | C28: 0 | H28: RD 25 | I28: 0 | J28: 0 | O28: RD 25 | P28: 0 | Q28: 0
A29: RD 26 | B29: 0 | C29: 0 | H29: RD 26 | I29: 0 | J29: 0 | O29: RD 26 | P29: 0 | Q29: 0
A30: RD 27 | B30: 0 | C30: 0 | H30: RD 27 | I30: 0 | J30: 0 | O30: RD 27 | P30: 0 | Q30: 0
A31: RD 28 | B31: 0 | C31: 0 | H31: RD 28 | I31: 0 | J31: 0 | O31: RD 28 | P31: 0 | Q31: 0
A32: RD 29 | B32: 0 | C32: 0 | E32: =IF(E4=0,"Sieg","") ->  | H32: RD 29 | I32: 0 | J32: 0 | L32: =IF(L4=0,"Sieg","") ->  | O32: RD 29 | P32: 0 | Q32: 0 | S32: =IF(S4=0,"Sieg","") -> 
A33: RD 30 | B33: 0 | C33: 0 | H33: RD 30 | I33: 0 | J33: 0 | O33: RD 30 | P33: 0 | Q33: 0
B34: =SUM(B4:B33) -> 0 | C34: =SUM(C4:C33) -> 0 | D34: =SUM(D4:D33) -> 0 | E34: =SUM(D4:D32) -> 0 | I34: =SUM(I4:I33) -> 0 | J34: =SUM(J4:J33) -> 0 | K34: =SUM(K4:K33) -> 0 | L34: =SUM(K4:K32) -> 0 | P34: =SUM(P4:P33) -> 0 | Q34: =SUM(Q4:Q33) -> 0 | R34: =SUM(R4:R33) -> 0 | S34: =SUM(R4:R32) -> 0
D45: =D1 -> Stefan | F45: =SUM(D34) -> 0 | K45: =INDEX(D45:E47,MATCH(MAX(F45:F47),F45:F47,0),1) -> Stefan
D46: =K1 -> Stefan | F46: =SUM(K34) -> 0 | K46: =INDEX(D45:E47,MATCH(MEDIAN(F45:F47),F45:F47,0),1) -> Stefan
D47: =R1 -> Stefan | F47: =SUM(S3) -> 0 | K47: =INDEX(D45:E47,MATCH(MIN(F45:F47),F45:F47,0),1) -> Stefan
D48: MAX(B2:B7 | F48: =MAX(F45:F47) -> 0

Sheet Rd5
D1: ='Rd4'!U3 -> Stefan | F1: Sp. 1 | K1: ='Rd4'!U2 -> Stefan | M1: Sp. 2 | R1: ='Rd4'!U1 -> Stefan | T1: Sp. 3 | U1: =K45 -> Stefan
D2: Punkte | E2: 501 | F2: Start | K2: Punkte | L2: 501 | M2: Start | R2: Punkte | S2: 501 | T2: Start | U2: =K46 -> Stefan
D3: Geworfen | E3: =SUM(D34) -> 0 | F3: Punkte | K3: Geworfen | L3: =SUM(K34) -> 0 | M3: Punkte | R3: Geworfen | S3: =SUM(R34) -> 0 | T3: Punkte | U3: Stefan
A4: RD 1 | B4: =COUNT(D4)*1 -> 0 | C4: =COUNT(D4)*3 -> 0 | E4: =SUM(E2-E3) -> 501 | F4: Rest | H4: RD 1 | I4: =COUNT(K4)*1 -> 0 | J4: =COUNT(K4)*3 -> 0 | L4: =SUM(L2-L3) -> 501 | M4: Rest | O4: RD 1 | P4: =COUNT(R4)*1 -> 0 | Q4: =COUNT(R4)*3 -> 0 | S4: =SUM(S2-S3) -> 501 | T4: Rest
A5: RD 2 | B5: 0 | C5: 0 | H5: RD 2 | I5: 0 | J5: 0 | O5: RD 2 | P5: 0 | Q5: 0
A6: RD 3 | B6: 0 | C6: 0 | E6: ø pro Spiel | F6: =SUM(E3)/B34 ->  | H6: RD 3 | I6: 0 | J6: 0 | L6: ø pro Spiel | M6: =SUM(L3)/I34 ->  | O6: RD 3 | P6: 0 | Q6: 0 | S6: ø pro Spiel | T6: =SUM(S3)/P34 -> 
A7: RD 4 | B7: 0 | C7: 0 | E7: ø pro Pfeil | F7: =SUM(E3)/C34 ->  | H7: RD 4 | I7: 0 | J7: 0 | L7: ø pro Pfeil | M7: =SUM(L3)/J34 ->  | O7: RD 4 | P7: 0 | Q7: 0 | S7: ø pro Pfeil | T7: =SUM(S3)/Q34 -> 
A8: RD 5 | B8: 0 | C8: 0 | E8: Average | H8: RD 5 | I8: 0 | J8: 0 | L8: Average | O8: RD 5 | P8: 0 | Q8: 0 | S8: Average
A9: RD 6 | B9: 0 | C9: 0 | E9: =SUM(F6) ->  | H9: RD 6 | I9: 0 | J9: 0 | L9: =SUM(M6) ->  | O9: RD 6 | P9: 0 | Q9: 0 | S9: =SUM(T6) -> 
A10: RD 7 | B10: 0 | C10: 0 | H10: RD 7 | I10: 0 | J10: 0 | O10: RD 7 | P10: 0 | Q10: 0
A11: RD 8 | B11: 0 | C11: 0 | E11: =IF(F6<40,"Nicht Gut","") ->  | H11: RD 8 | I11: 0 | J11: 0 | L11: =IF(M6<40,"Nicht Gut","") ->  | O11: RD 8 | P11: 0 | Q11: 0 | S11: =IF(T6<40,"Nicht Gut","") -> 
A12: RD 9 | B12: 0 | C12: 0 | H12: RD 9 | I12: 0 | J12: 0 | O12: RD 9 | P12: 0 | Q12: 0
A13: RD 10 | B13: 0 | C13: 0 | H13: RD 10 | I13: 0 | J13: 0 | O13: RD 10 | P13: 0 | Q13: 0
A14: RD 11 | B14: 0 | C14: 0 | E14: =IF(F6>40,"Gut","") ->  | H14: RD 11 | I14: 0 | J14: 0 | L14: =IF(M6>40,"Gut","") ->  | O14: RD 11 | P14: 0 | Q14: 0 | S14: =IF(T6>40,"Gut","") -> 
A15: RD 12 | B15: 0 | C15: 0 | H15: RD 12 | I15: 0 | J15: 0 | O15: RD 12 | P15: 0 | Q15: 0
A16: RD 13 | B16: 0 | C16: 0 | H16: RD 13 | I16: 0 | J16: 0 | O16: RD 13 | P16: 0 | Q16: 0
A17: RD 14 | B17: 0 | C17: 0 | H17: RD 14 | I17: 0 | J17: 0 | O17: RD 14 | P17: 0 | Q17: 0
A18: RD 15 | B18: 0 | C18: 0 | E18: =D1 -> Stefan | F18: =E4 -> 501 | H18: RD 15 | I18: 0 | J18: 0 | L18: =K1 -> Stefan | M18: =L4 -> 501 | O18: RD 15 | P18: 0 | Q18: 0 | S18: =R1 -> Stefan | T18: =S4 -> 501
A19: RD 16 | B19: 0 | C19: 0 | H19: RD 16 | I19: 0 | J19: 0 | O19: RD 16 | P19: 0 | Q19: 0
A20: RD 17 | B20: 0 | C20: 0 | E20: =IF(F6>50,"Sehr Gut","") ->  | H20: RD 17 | I20: 0 | J20: 0 | L20: =IF(M6>50,"Sehr Gut","") ->  | O20: RD 17 | P20: 0 | Q20: 0 | S20: =IF(T6>50,"Sehr Gut","") -> 
A21: RD 18 | B21: 0 | C21: 0 | H21: RD 18 | I21: 0 | J21: 0 | O21: RD 18 | P21: 0 | Q21: 0
A22: RD 19 | B22: 0 | C22: 0 | H22: RD 19 | I22: 0 | J22: 0 | O22: RD 19 | P22: 0 | Q22: 0
A23: RD 20 | B23: 0 | C23: 0 | H23: RD 20 | I23: 0 | J23: 0 | O23: RD 20 | P23: 0 | Q23: 0
A24: RD 21 | B24: 0 | C24: 0 | H24: RD 21 | I24: 0 | J24: 0 | O24: RD 21 | P24: 0 | Q24: 0
A25: RD 22 | B25: 0 | C25: 0 | H25: RD 22 | I25: 0 | J25: 0 | O25: RD 22 | P25: 0 | Q25: 0
A26: RD 23 | B26: 0 | C26: 0 | H26: RD 23 | I26: 0 | J26: 0 | O26: RD 23 | P26: 0 | Q26: 0
A27: RD 24 | B27: 0 | C27: 0 | H27: RD 24 | I27: 0 | J27: 0 | O27: RD 24 | P27: 0 | Q27: 0
A28: RD 25 | B28: 0 | C28: 0 | H28: RD 25 | I28: 0 | J28: 0 | O28: RD 25 | P28: 0 | Q28: 0
A29: RD 26 | B29: 0 | C29: 0 | H29: RD 26 | I29: 0 | J29: 0 | O29: RD 26 | P29: 0 | Q29: 0
A30: RD 27 | B30: 0 | C30: 0 | H30: RD 27 | I30: 0 | J30: 0 | O30: RD 27 | P30: 0 | Q30: 0
A31: RD 28 | B31: 0 | C31: 0 | H31: RD 28 | I31: 0 | J31: 0 | O31: RD 28 | P31: 0 | Q31: 0
A32: RD 29 | B32: 0 | C32: 0 | E32: =IF(E4=0,"Sieg","") ->  | H32: RD 29 | I32: 0 | J32: 0 | L32: =IF(L4=0,"Sieg","") ->  | O32: RD 29 | P32: 0 | Q32: 0 | S32: =IF(S4=0,"Sieg","") -> 
A33: RD 30 | B33: 0 | C33: 0 | H33: RD 30 | I33: 0 | J33: 0 | O33: RD 30 | P33: 0 | Q33: 0
B34: =SUM(B4:B33) -> 0 | C34: =SUM(C4:C33) -> 0 | D34: =SUM(D4:D33) -> 0 | E34: =SUM(D4:D32) -> 0 | I34: =SUM(I4:I33) -> 0 | J34: =SUM(J4:J33) -> 0 | K34: =SUM(K4:K33) -> 0 | L34: =SUM(K4:K32) -> 0 | P34: =SUM(P4:P33) -> 0 | Q34: =SUM(Q4:Q33) -> 0 | R34: =SUM(R4:R33) -> 0 | S34: =SUM(R4:R32) -> 0
D45: =D1 -> Stefan | F45: =SUM(D34) -> 0 | K45: =INDEX(D45:E47,MATCH(MAX(F45:F47),F45:F47,0),1) -> Stefan
D46: =K1 -> Stefan | F46: =SUM(K34) -> 0 | K46: =INDEX(D45:E47,MATCH(MEDIAN(F45:F47),F45:F47,0),1) -> Stefan
D47: =R1 -> Stefan | F47: =SUM(S3) -> 0 | K47: =INDEX(D45:E47,MATCH(MIN(F45:F47),F45:F47,0),1) -> Stefan
D48: MAX(B2:B7 | F48: =MAX(F45:F47) -> 0

Sheet Rd6
D1: ='Rd5'!U3 -> Stefan | F1: Sp. 1 | K1: ='Rd5'!U2 -> Stefan | M1: Sp. 2 | R1: ='Rd5'!U1 -> Stefan | T1: Sp. 3 | U1: =K45 -> Stefan
D2: Punkte | E2: 501 | F2: Start | K2: Punkte | L2: 501 | M2: Start | R2: Punkte | S2: 501 | T2: Start | U2: =K46 -> Stefan
D3: Geworfen | E3: =SUM(D34) -> 0 | F3: Punkte | K3: Geworfen | L3: =SUM(K34) -> 0 | M3: Punkte | R3: Geworfen | S3: =SUM(R34) -> 0 | T3: Punkte | U3: Stefan
A4: RD 1 | B4: =COUNT(D4)*1 -> 0 | C4: =COUNT(D4)*3 -> 0 | E4: =SUM(E2-E3) -> 501 | F4: Rest | H4: RD 1 | I4: =COUNT(K4)*1 -> 0 | J4: =COUNT(K4)*3 -> 0 | L4: =SUM(L2-L3) -> 501 | M4: Rest | O4: RD 1 | P4: =COUNT(R4)*1 -> 0 | Q4: =COUNT(R4)*3 -> 0 | S4: =SUM(S2-S3) -> 501 | T4: Rest
A5: RD 2 | B5: 0 | C5: 0 | H5: RD 2 | I5: 0 | J5: 0 | O5: RD 2 | P5: 0 | Q5: 0
A6: RD 3 | B6: 0 | C6: 0 | E6: ø pro Spiel | F6: =SUM(E3)/B34 ->  | H6: RD 3 | I6: 0 | J6: 0 | L6: ø pro Spiel | M6: =SUM(L3)/I34 ->  | O6: RD 3 | P6: 0 | Q6: 0 | S6: ø pro Spiel | T6: =SUM(S3)/P34 -> 
A7: RD 4 | B7: 0 | C7: 0 | E7: ø pro Pfeil | F7: =SUM(E3)/C34 ->  | H7: RD 4 | I7: 0 | J7: 0 | L7: ø pro Pfeil | M7: =SUM(L3)/J34 ->  | O7: RD 4 | P7: 0 | Q7: 0 | S7: ø pro Pfeil | T7: =SUM(S3)/Q34 -> 
A8: RD 5 | B8: 0 | C8: 0 | E8: Average | H8: RD 5 | I8: 0 | J8: 0 | L8: Average | O8: RD 5 | P8: 0 | Q8: 0 | S8: Average
A9: RD 6 | B9: 0 | C9: 0 | E9: =SUM(F6) ->  | H9: RD 6 | I9: 0 | J9: 0 | L9: =SUM(M6) ->  | O9: RD 6 | P9: 0 | Q9: 0 | S9: =SUM(T6) -> 
A10: RD 7 | B10: 0 | C10: 0 | H10: RD 7 | I10: 0 | J10: 0 | O10: RD 7 | P10: 0 | Q10: 0
A11: RD 8 | B11: 0 | C11: 0 | E11: =IF(F6<40,"Nicht Gut","") ->  | H11: RD 8 | I11: 0 | J11: 0 | L11: =IF(M6<40,"Nicht Gut","") ->  | O11: RD 8 | P11: 0 | Q11: 0 | S11: =IF(T6<40,"Nicht Gut","") -> 
A12: RD 9 | B12: 0 | C12: 0 | H12: RD 9 | I12: 0 | J12: 0 | O12: RD 9 | P12: 0 | Q12: 0
A13: RD 10 | B13: 0 | C13: 0 | H13: RD 10 | I13: 0 | J13: 0 | O13: RD 10 | P13: 0 | Q13: 0
A14: RD 11 | B14: 0 | C14: 0 | E14: =IF(F6>40,"Gut","") ->  | H14: RD 11 | I14: 0 | J14: 0 | L14: =IF(M6>40,"Gut","") ->  | O14: RD 11 | P14: 0 | Q14: 0 | S14: =IF(T6>40,"Gut","") -> 
A15: RD 12 | B15: 0 | C15: 0 | H15: RD 12 | I15: 0 | J15: 0 | O15: RD 12 | P15: 0 | Q15: 0
A16: RD 13 | B16: 0 | C16: 0 | H16: RD 13 | I16: 0 | J16: 0 | O16: RD 13 | P16: 0 | Q16: 0
A17: RD 14 | B17: 0 | C17: 0 | H17: RD 14 | I17: 0 | J17: 0 | O17: RD 14 | P17: 0 | Q17: 0
A18: RD 15 | B18: 0 | C18: 0 | E18: =D1 -> Stefan | F18: =E4 -> 501 | H18: RD 15 | I18: 0 | J18: 0 | L18: =K1 -> Stefan | M18: =L4 -> 501 | O18: RD 15 | P18: 0 | Q18: 0 | S18: =R1 -> Stefan | T18: =S4 -> 501
A19: RD 16 | B19: 0 | C19: 0 | H19: RD 16 | I19: 0 | J19: 0 | O19: RD 16 | P19: 0 | Q19: 0
A20: RD 17 | B20: 0 | C20: 0 | E20: =IF(F6>50,"Sehr Gut","") ->  | H20: RD 17 | I20: 0 | J20: 0 | L20: =IF(M6>50,"Sehr Gut","") ->  | O20: RD 17 | P20: 0 | Q20: 0 | S20: =IF(T6>50,"Sehr Gut","") -> 
A21: RD 18 | B21: 0 | C21: 0 | H21: RD 18 | I21: 0 | J21: 0 | O21: RD 18 | P21: 0 | Q21: 0
A22: RD 19 | B22: 0 | C22: 0 | H22: RD 19 | I22: 0 | J22: 0 | O22: RD 19 | P22: 0 | Q22: 0
A23: RD 20 | B23: 0 | C23: 0 | H23: RD 20 | I23: 0 | J23: 0 | O23: RD 20 | P23: 0 | Q23: 0
A24: RD 21 | B24: 0 | C24: 0 | H24: RD 21 | I24: 0 | J24: 0 | O24: RD 21 | P24: 0 | Q24: 0
A25: RD 22 | B25: 0 | C25: 0 | H25: RD 22 | I25: 0 | J25: 0 | O25: RD 22 | P25: 0 | Q25: 0
A26: RD 23 | B26: 0 | C26: 0 | H26: RD 23 | I26: 0 | J26: 0 | O26: RD 23 | P26: 0 | Q26: 0
A27: RD 24 | B27: 0 | C27: 0 | H27: RD 24 | I27: 0 | J27: 0 | O27: RD 24 | P27: 0 | Q27: 0
A28: RD 25 | B28: 0 | C28: 0 | H28: RD 25 | I28: 0 | J28: 0 | O28: RD 25 | P28: 0 | Q28: 0
A29: RD 26 | B29: 0 | C29: 0 | H29: RD 26 | I29: 0 | J29: 0 | O29: RD 26 | P29: 0 | Q29: 0
A30: RD 27 | B30: 0 | C30: 0 | H30: RD 27 | I30: 0 | J30: 0 | O30: RD 27 | P30: 0 | Q30: 0
A31: RD 28 | B31: 0 | C31: 0 | H31: RD 28 | I31: 0 | J31: 0 | O31: RD 28 | P31: 0 | Q31: 0
A32: RD 29 | B32: 0 | C32: 0 | E32: =IF(E4=0,"Sieg","") ->  | H32: RD 29 | I32: 0 | J32: 0 | L32: =IF(L4=0,"Sieg","") ->  | O32: RD 29 | P32: 0 | Q32: 0 | S32: =IF(S4=0,"Sieg","") -> 
A33: RD 30 | B33: 0 | C33: 0 | H33: RD 30 | I33: 0 | J33: 0 | O33: RD 30 | P33: 0 | Q33: 0
B34: =SUM(B4:B33) -> 0 | C34: =SUM(C4:C33) -> 0 | D34: =SUM(D4:D33) -> 0 | E34: =SUM(D4:D32) -> 0 | I34: =SUM(I4:I33) -> 0 | J34: =SUM(J4:J33) -> 0 | K34: =SUM(K4:K33) -> 0 | L34: =SUM(K4:K32) -> 0 | P34: =SUM(P4:P33) -> 0 | Q34: =SUM(Q4:Q33) -> 0 | R34: =SUM(R4:R33) -> 0 | S34: =SUM(R4:R32) -> 0
D45: =D1 -> Stefan | F45: =SUM(D34) -> 0 | K45: =INDEX(D45:E47,MATCH(MAX(F45:F47),F45:F47,0),1) -> Stefan
D46: =K1 -> Stefan | F46: =SUM(K34) -> 0 | K46: =INDEX(D45:E47,MATCH(MEDIAN(F45:F47),F45:F47,0),1) -> Stefan
D47: =R1 -> Stefan | F47: =SUM(S3) -> 0 | K47: =INDEX(D45:E47,MATCH(MIN(F45:F47),F45:F47,0),1) -> Stefan
D48: MAX(B2:B7 | F48: =MAX(F45:F47) -> 0

Sheet Rd7
D1: ='Rd6'!U3 -> Stefan | F1: Sp. 1 | K1: ='Rd6'!U2 -> Stefan | M1: Sp. 2 | R1: ='Rd6'!U1 -> Stefan | T1: Sp. 3 | U1: =K45 -> Stefan
D2: Punkte | E2: 501 | F2: Start | K2: Punkte | L2: 501 | M2: Start | R2: Punkte | S2: 501 | T2: Start | U2: =K46 -> Stefan
D3: Geworfen | E3: =SUM(D34) -> 0 | F3: Punkte | K3: Geworfen | L3: =SUM(K34) -> 0 | M3: Punkte | R3: Geworfen | S3: =SUM(R34) -> 0 | T3: Punkte | U3: Stefan
A4: RD 1 | B4: =COUNT(D4)*1 -> 0 | C4: =COUNT(D4)*3 -> 0 | E4: =SUM(E2-E3) -> 501 | F4: Rest | H4: RD 1 | I4: =COUNT(K4)*1 -> 0 | J4: =COUNT(K4)*3 -> 0 | L4: =SUM(L2-L3) -> 501 | M4: Rest | O4: RD 1 | P4: =COUNT(R4)*1 -> 0 | Q4: =COUNT(R4)*3 -> 0 | S4: =SUM(S2-S3) -> 501 | T4: Rest
A5: RD 2 | B5: 0 | C5: 0 | H5: RD 2 | I5: 0 | J5: 0 | O5: RD 2 | P5: 0 | Q5: 0
A6: RD 3 | B6: 0 | C6: 0 | E6: ø pro Spiel | F6: =SUM(E3)/B34 ->  | H6: RD 3 | I6: 0 | J6: 0 | L6: ø pro Spiel | M6: =SUM(L3)/I34 ->  | O6: RD 3 | P6: 0 | Q6: 0 | S6: ø pro Spiel | T6: =SUM(S3)/P34 -> 
A7: RD 4 | B7: 0 | C7: 0 | E7: ø pro Pfeil | F7: =SUM(E3)/C34 ->  | H7: RD 4 | I7: 0 | J7: 0 | L7: ø pro Pfeil | M7: =SUM(L3)/J34 ->  | O7: RD 4 | P7: 0 | Q7: 0 | S7: ø pro Pfeil | T7: =SUM(S3)/Q34 -> 
A8: RD 5 | B8: 0 | C8: 0 | E8: Average | H8: RD 5 | I8: 0 | J8: 0 | L8: Average | O8: RD 5 | P8: 0 | Q8: 0 | S8: Average
A9: RD 6 | B9: 0 | C9: 0 | E9: =SUM(F6) ->  | H9: RD 6 | I9: 0 | J9: 0 | L9: =SUM(M6) ->  | O9: RD 6 | P9: 0 | Q9: 0 | S9: =SUM(T6) -> 
A10: RD 7 | B10: 0 | C10: 0 | H10: RD 7 | I10: 0 | J10: 0 | O10: RD 7 | P10: 0 | Q10: 0
A11: RD 8 | B11: 0 | C11: 0 | E11: =IF(F6<40,"Nicht Gut","") ->  | H11: RD 8 | I11: 0 | J11: 0 | L11: =IF(M6<40,"Nicht Gut","") ->  | O11: RD 8 | P11: 0 | Q11: 0 | S11: =IF(T6<40,"Nicht Gut","") -> 
A12: RD 9 | B12: 0 | C12: 0 | H12: RD 9 | I12: 0 | J12: 0 | O12: RD 9 | P12: 0 | Q12: 0
A13: RD 10 | B13: 0 | C13: 0 | H13: RD 10 | I13: 0 | J13: 0 | O13: RD 10 | P13: 0 | Q13: 0
A14: RD 11 | B14: 0 | C14: 0 | E14: =IF(F6>40,"Gut","") ->  | H14: RD 11 | I14: 0 | J14: 0 | L14: =IF(M6>40,"Gut","") ->  | O14: RD 11 | P14: 0 | Q14: 0 | S14: =IF(T6>40,"Gut","") -> 
A15: RD 12 | B15: 0 | C15: 0 | H15: RD 12 | I15: 0 | J15: 0 | O15: RD 12 | P15: 0 | Q15: 0
A16: RD 13 | B16: 0 | C16: 0 | H16: RD 13 | I16: 0 | J16: 0 | O16: RD 13 | P16: 0 | Q16: 0
A17: RD 14 | B17: 0 | C17: 0 | H17: RD 14 | I17: 0 | J17: 0 | O17: RD 14 | P17: 0 | Q17: 0
A18: RD 15 | B18: 0 | C18: 0 | E18: =D1 -> Stefan | F18: =E4 -> 501 | H18: RD 15 | I18: 0 | J18: 0 | L18: =K1 -> Stefan | M18: =L4 -> 501 | O18: RD 15 | P18: 0 | Q18: 0 | S18: =R1 -> Stefan | T18: =S4 -> 501
A19: RD 16 | B19: 0 | C19: 0 | H19: RD 16 | I19: 0 | J19: 0 | O19: RD 16 | P19: 0 | Q19: 0
A20: RD 17 | B20: 0 | C20: 0 | E20: =IF(F6>50,"Sehr Gut","") ->  | H20: RD 17 | I20: 0 | J20: 0 | L20: =IF(M6>50,"Sehr Gut","") ->  | O20: RD 17 | P20: 0 | Q20: 0 | S20: =IF(T6>50,"Sehr Gut","") -> 
A21: RD 18 | B21: 0 | C21: 0 | H21: RD 18 | I21: 0 | J21: 0 | O21: RD 18 | P21: 0 | Q21: 0
A22: RD 19 | B22: 0 | C22: 0 | H22: RD 19 | I22: 0 | J22: 0 | O22: RD 19 | P22: 0 | Q22: 0
A23: RD 20 | B23: 0 | C23: 0 | H23: RD 20 | I23: 0 | J23: 0 | O23: RD 20 | P23: 0 | Q23: 0
A24: RD 21 | B24: 0 | C24: 0 | H24: RD 21 | I24: 0 | J24: 0 | O24: RD 21 | P24: 0 | Q24: 0
A25: RD 22 | B25: 0 | C25: 0 | H25: RD 22 | I25: 0 | J25: 0 | O25: RD 22 | P25: 0 | Q25: 0
A26: RD 23 | B26: 0 | C26: 0 | H26: RD 23 | I26: 0 | J26: 0 | O26: RD 23 | P26: 0 | Q26: 0
A27: RD 24 | B27: 0 | C27: 0 | H27: RD 24 | I27: 0 | J27: 0 | O27: RD 24 | P27: 0 | Q27: 0
A28: RD 25 | B28: 0 | C28: 0 | H28: RD 25 | I28: 0 | J28: 0 | O28: RD 25 | P28: 0 | Q28: 0
A29: RD 26 | B29: 0 | C29: 0 | H29: RD 26 | I29: 0 | J29: 0 | O29: RD 26 | P29: 0 | Q29: 0
A30: RD 27 | B30: 0 | C30: 0 | H30: RD 27 | I30: 0 | J30: 0 | O30: RD 27 | P30: 0 | Q30: 0
A31: RD 28 | B31: 0 | C31: 0 | H31: RD 28 | I31: 0 | J31: 0 | O31: RD 28 | P31: 0 | Q31: 0
A32: RD 29 | B32: 0 | C32: 0 | E32: =IF(E4=0,"Sieg","") ->  | H32: RD 29 | I32: 0 | J32: 0 | L32: =IF(L4=0,"Sieg","") ->  | O32: RD 29 | P32: 0 | Q32: 0 | S32: =IF(S4=0,"Sieg","") -> 
A33: RD 30 | B33: 0 | C33: 0 | H33: RD 30 | I33: 0 | J33: 0 | O33: RD 30 | P33: 0 | Q33: 0
B34: =SUM(B4:B33) -> 0 | C34: =SUM(C4:C33) -> 0 | D34: =SUM(D4:D33) -> 0 | E34: =SUM(D4:D32) -> 0 | I34: =SUM(I4:I33) -> 0 | J34: =SUM(J4:J33) -> 0 | K34: =SUM(K4:K33) -> 0 | L34: =SUM(K4:K32) -> 0 | P34: =SUM(P4:P33) -> 0 | Q34: =SUM(Q4:Q33) -> 0 | R34: =SUM(R4:R33) -> 0 | S34: =SUM(R4:R32) -> 0
D45: =D1 -> Stefan | F45: =SUM(D34) -> 0 | K45: =INDEX(D45:E47,MATCH(MAX(F45:F47),F45:F47,0),1) -> Stefan
D46: =K1 -> Stefan | F46: =SUM(K34) -> 0 | K46: =INDEX(D45:E47,MATCH(MEDIAN(F45:F47),F45:F47,0),1) -> Stefan
D47: =R1 -> Stefan | F47: =SUM(S3) -> 0 | K47: =INDEX(D45:E47,MATCH(MIN(F45:F47),F45:F47,0),1) -> Stefan
D48: MAX(B2:B7 | F48: =MAX(F45:F47) -> 0

Sheet Rd8
D1: ='Rd7'!U3 -> Stefan | F1: Sp. 1 | K1: ='Rd7'!U2 -> Stefan | M1: Sp. 2 | R1: ='Rd7'!U1 -> Stefan | T1: Sp. 3 | U1: =K45 -> Stefan
D2: Punkte | E2: 501 | F2: Start | K2: Punkte | L2: 501 | M2: Start | R2: Punkte | S2: 501 | T2: Start | U2: =K46 -> Stefan
D3: Geworfen | E3: =SUM(D34) -> 0 | F3: Punkte | K3: Geworfen | L3: =SUM(K34) -> 0 | M3: Punkte | R3: Geworfen | S3: =SUM(R34) -> 0 | T3: Punkte | U3: Stefan
A4: RD 1 | B4: =COUNT(D4)*1 -> 0 | C4: =COUNT(D4)*3 -> 0 | E4: =SUM(E2-E3) -> 501 | F4: Rest | H4: RD 1 | I4: =COUNT(K4)*1 -> 0 | J4: =COUNT(K4)*3 -> 0 | L4: =SUM(L2-L3) -> 501 | M4: Rest | O4: RD 1 | P4: =COUNT(R4)*1 -> 0 | Q4: =COUNT(R4)*3 -> 0 | S4: =SUM(S2-S3) -> 501 | T4: Rest
A5: RD 2 | B5: 0 | C5: 0 | H5: RD 2 | I5: 0 | J5: 0 | O5: RD 2 | P5: 0 | Q5: 0
A6: RD 3 | B6: 0 | C6: 0 | E6: ø pro Spiel | F6: =SUM(E3)/B34 ->  | H6: RD 3 | I6: 0 | J6: 0 | L6: ø pro Spiel | M6: =SUM(L3)/I34 ->  | O6: RD 3 | P6: 0 | Q6: 0 | S6: ø pro Spiel | T6: =SUM(S3)/P34 -> 
A7: RD 4 | B7: 0 | C7: 0 | E7: ø pro Pfeil | F7: =SUM(E3)/C34 ->  | H7: RD 4 | I7: 0 | J7: 0 | L7: ø pro Pfeil | M7: =SUM(L3)/J34 ->  | O7: RD 4 | P7: 0 | Q7: 0 | S7: ø pro Pfeil | T7: =SUM(S3)/Q34 -> 
A8: RD 5 | B8: 0 | C8: 0 | E8: Average | H8: RD 5 | I8: 0 | J8: 0 | L8: Average | O8: RD 5 | P8: 0 | Q8: 0 | S8: Average
A9: RD 6 | B9: 0 | C9: 0 | E9: =SUM(F6) ->  | H9: RD 6 | I9: 0 | J9: 0 | L9: =SUM(M6) ->  | O9: RD 6 | P9: 0 | Q9: 0 | S9: =SUM(T6) -> 
A10: RD 7 | B10: 0 | C10: 0 | H10: RD 7 | I10: 0 | J10: 0 | O10: RD 7 | P10: 0 | Q10: 0
A11: RD 8 | B11: 0 | C11: 0 | E11: =IF(F6<40,"Nicht Gut","") ->  | H11: RD 8 | I11: 0 | J11: 0 | L11: =IF(M6<40,"Nicht Gut","") ->  | O11: RD 8 | P11: 0 | Q11: 0 | S11: =IF(T6<40,"Nicht Gut","") -> 
A12: RD 9 | B12: 0 | C12: 0 | H12: RD 9 | I12: 0 | J12: 0 | O12: RD 9 | P12: 0 | Q12: 0
A13: RD 10 | B13: 0 | C13: 0 | H13: RD 10 | I13: 0 | J13: 0 | O13: RD 10 | P13: 0 | Q13: 0
A14: RD 11 | B14: 0 | C14: 0 | E14: =IF(F6>40,"Gut","") ->  | H14: RD 11 | I14: 0 | J14: 0 | L14: =IF(M6>40,"Gut","") ->  | O14: RD 11 | P14: 0 | Q14: 0 | S14: =IF(T6>40,"Gut","") -> 
A15: RD 12 | B15: 0 | C15: 0 | H15: RD 12 | I15: 0 | J15: 0 | O15: RD 12 | P15: 0 | Q15: 0
A16: RD 13 | B16: 0 | C16: 0 | H16: RD 13 | I16: 0 | J16: 0 | O16: RD 13 | P16: 0 | Q16: 0
A17: RD 14 | B17: 0 | C17: 0 | H17: RD 14 | I17: 0 | J17: 0 | O17: RD 14 | P17: 0 | Q17: 0
A18: RD 15 | B18: 0 | C18: 0 | E18: =D1 -> Stefan | F18: =E4 -> 501 | H18: RD 15 | I18: 0 | J18: 0 | L18: =K1 -> Stefan | M18: =L4 -> 501 | O18: RD 15 | P18: 0 | Q18: 0 | S18: =R1 -> Stefan | T18: =S4 -> 501
A19: RD 16 | B19: 0 | C19: 0 | H19: RD 16 | I19: 0 | J19: 0 | O19: RD 16 | P19: 0 | Q19: 0
A20: RD 17 | B20: 0 | C20: 0 | E20: =IF(F6>50,"Sehr Gut","") ->  | H20: RD 17 | I20: 0 | J20: 0 | L20: =IF(M6>50,"Sehr Gut","") ->  | O20: RD 17 | P20: 0 | Q20: 0 | S20: =IF(T6>50,"Sehr Gut","") -> 
A21: RD 18 | B21: 0 | C21: 0 | H21: RD 18 | I21: 0 | J21: 0 | O21: RD 18 | P21: 0 | Q21: 0
A22: RD 19 | B22: 0 | C22: 0 | H22: RD 19 | I22: 0 | J22: 0 | O22: RD 19 | P22: 0 | Q22: 0
A23: RD 20 | B23: 0 | C23: 0 | H23: RD 20 | I23: 0 | J23: 0 | O23: RD 20 | P23: 0 | Q23: 0
A24: RD 21 | B24: 0 | C24: 0 | H24: RD 21 | I24: 0 | J24: 0 | O24: RD 21 | P24: 0 | Q24: 0
A25: RD 22 | B25: 0 | C25: 0 | H25: RD 22 | I25: 0 | J25: 0 | O25: RD 22 | P25: 0 | Q25: 0
A26: RD 23 | B26: 0 | C26: 0 | H26: RD 23 | I26: 0 | J26: 0 | O26: RD 23 | P26: 0 | Q26: 0
A27: RD 24 | B27: 0 | C27: 0 | H27: RD 24 | I27: 0 | J27: 0 | O27: RD 24 | P27: 0 | Q27: 0
A28: RD 25 | B28: 0 | C28: 0 | H28: RD 25 | I28: 0 | J28: 0 | O28: RD 25 | P28: 0 | Q28: 0
A29: RD 26 | B29: 0 | C29: 0 | H29: RD 26 | I29: 0 | J29: 0 | O29: RD 26 | P29: 0 | Q29: 0
A30: RD 27 | B30: 0 | C30: 0 | H30: RD 27 | I30: 0 | J30: 0 | O30: RD 27 | P30: 0 | Q30: 0
A31: RD 28 | B31: 0 | C31: 0 | H31: RD 28 | I31: 0 | J31: 0 | O31: RD 28 | P31: 0 | Q31: 0
A32: RD 29 | B32: 0 | C32: 0 | E32: =IF(E4=0,"Sieg","") ->  | H32: RD 29 | I32: 0 | J32: 0 | L32: =IF(L4=0,"Sieg","") ->  | O32: RD 29 | P32: 0 | Q32: 0 | S32: =IF(S4=0,"Sieg","") -> 
A33: RD 30 | B33: 0 | C33: 0 | H33: RD 30 | I33: 0 | J33: 0 | O33: RD 30 | P33: 0 | Q33: 0
B34: =SUM(B4:B33) -> 0 | C34: =SUM(C4:C33) -> 0 | D34: =SUM(D4:D33) -> 0 | E34: =SUM(D4:D32) -> 0 | I34: =SUM(I4:I33) -> 0 | J34: =SUM(J4:J33) -> 0 | K34: =SUM(K4:K33) -> 0 | L34: =SUM(K4:K32) -> 0 | P34: =SUM(P4:P33) -> 0 | Q34: =SUM(Q4:Q33) -> 0 | R34: =SUM(R4:R33) -> 0 | S34: =SUM(R4:R32) -> 0
D45: =D1 -> Stefan | F45: =SUM(D34) -> 0 | K45: =INDEX(D45:E47,MATCH(MAX(F45:F47),F45:F47,0),1) -> Stefan
D46: =K1 -> Stefan | F46: =SUM(K34) -> 0 | K46: =INDEX(D45:E47,MATCH(MEDIAN(F45:F47),F45:F47,0),1) -> Stefan
D47: =R1 -> Stefan | F47: =SUM(S3) -> 0 | K47: =INDEX(D45:E47,MATCH(MIN(F45:F47),F45:F47,0),1) -> Stefan
D48: MAX(B2:B7 | F48: =MAX(F45:F47) -> 0

Sheet Rd9
D1: ='Rd8'!U3 -> Stefan | F1: Sp. 1 | K1: ='Rd8'!U2 -> Stefan | M1: Sp. 2 | R1: ='Rd8'!U1 -> Stefan | T1: Sp. 3 | U1: =K45 -> Stefan
D2: Punkte | E2: 501 | F2: Start | K2: Punkte | L2: 501 | M2: Start | R2: Punkte | S2: 501 | T2: Start | U2: =K46 -> Stefan
D3: Geworfen | E3: =SUM(D34) -> 0 | F3: Punkte | K3: Geworfen | L3: =SUM(K34) -> 0 | M3: Punkte | R3: Geworfen | S3: =SUM(R34) -> 0 | T3: Punkte | U3: Stefan
A4: RD 1 | B4: =COUNT(D4)*1 -> 0 | C4: =COUNT(D4)*3 -> 0 | E4: =SUM(E2-E3) -> 501 | F4: Rest | H4: RD 1 | I4: =COUNT(K4)*1 -> 0 | J4: =COUNT(K4)*3 -> 0 | L4: =SUM(L2-L3) -> 501 | M4: Rest | O4: RD 1 | P4: =COUNT(R4)*1 -> 0 | Q4: =COUNT(R4)*3 -> 0 | S4: =SUM(S2-S3) -> 501 | T4: Rest
A5: RD 2 | B5: 0 | C5: 0 | H5: RD 2 | I5: 0 | J5: 0 | O5: RD 2 | P5: 0 | Q5: 0
A6: RD 3 | B6: 0 | C6: 0 | E6: ø pro Spiel | F6: =SUM(E3)/B34 ->  | H6: RD 3 | I6: 0 | J6: 0 | L6: ø pro Spiel | M6: =SUM(L3)/I34 ->  | O6: RD 3 | P6: 0 | Q6: 0 | S6: ø pro Spiel | T6: =SUM(S3)/P34 -> 
A7: RD 4 | B7: 0 | C7: 0 | E7: ø pro Pfeil | F7: =SUM(E3)/C34 ->  | H7: RD 4 | I7: 0 | J7: 0 | L7: ø pro Pfeil | M7: =SUM(L3)/J34 ->  | O7: RD 4 | P7: 0 | Q7: 0 | S7: ø pro Pfeil | T7: =SUM(S3)/Q34 -> 
A8: RD 5 | B8: 0 | C8: 0 | E8: Average | H8: RD 5 | I8: 0 | J8: 0 | L8: Average | O8: RD 5 | P8: 0 | Q8: 0 | S8: Average
A9: RD 6 | B9: 0 | C9: 0 | E9: =SUM(F6) ->  | H9: RD 6 | I9: 0 | J9: 0 | L9: =SUM(M6) ->  | O9: RD 6 | P9: 0 | Q9: 0 | S9: =SUM(T6) -> 
A10: RD 7 | B10: 0 | C10: 0 | H10: RD 7 | I10: 0 | J10: 0 | O10: RD 7 | P10: 0 | Q10: 0
A11: RD 8 | B11: 0 | C11: 0 | E11: =IF(F6<40,"Nicht Gut","") ->  | H11: RD 8 | I11: 0 | J11: 0 | L11: =IF(M6<40,"Nicht Gut","") ->  | O11: RD 8 | P11: 0 | Q11: 0 | S11: =IF(T6<40,"Nicht Gut","") -> 
A12: RD 9 | B12: 0 | C12: 0 | H12: RD 9 | I12: 0 | J12: 0 | O12: RD 9 | P12: 0 | Q12: 0
A13: RD 10 | B13: 0 | C13: 0 | H13: RD 10 | I13: 0 | J13: 0 | O13: RD 10 | P13: 0 | Q13: 0
A14: RD 11 | B14: 0 | C14: 0 | E14: =IF(F6>40,"Gut","") ->  | H14: RD 11 | I14: 0 | J14: 0 | L14: =IF(M6>40,"Gut","") ->  | O14: RD 11 | P14: 0 | Q14: 0 | S14: =IF(T6>40,"Gut","") -> 
A15: RD 12 | B15: 0 | C15: 0 | H15: RD 12 | I15: 0 | J15: 0 | O15: RD 12 | P15: 0 | Q15: 0
A16: RD 13 | B16: 0 | C16: 0 | H16: RD 13 | I16: 0 | J16: 0 | O16: RD 13 | P16: 0 | Q16: 0
A17: RD 14 | B17: 0 | C17: 0 | H17: RD 14 | I17: 0 | J17: 0 | O17: RD 14 | P17: 0 | Q17: 0
A18: RD 15 | B18: 0 | C18: 0 | E18: =D1 -> Stefan | F18: =E4 -> 501 | H18: RD 15 | I18: 0 | J18: 0 | L18: =K1 -> Stefan | M18: =L4 -> 501 | O18: RD 15 | P18: 0 | Q18: 0 | S18: =R1 -> Stefan | T18: =S4 -> 501
A19: RD 16 | B19: 0 | C19: 0 | H19: RD 16 | I19: 0 | J19: 0 | O19: RD 16 | P19: 0 | Q19: 0
A20: RD 17 | B20: 0 | C20: 0 | E20: =IF(F6>50,"Sehr Gut","") ->  | H20: RD 17 | I20: 0 | J20: 0 | L20: =IF(M6>50,"Sehr Gut","") ->  | O20: RD 17 | P20: 0 | Q20: 0 | S20: =IF(T6>50,"Sehr Gut","") -> 
A21: RD 18 | B21: 0 | C21: 0 | H21: RD 18 | I21: 0 | J21: 0 | O21: RD 18 | P21: 0 | Q21: 0
A22: RD 19 | B22: 0 | C22: 0 | H22: RD 19 | I22: 0 | J22: 0 | O22: RD 19 | P22: 0 | Q22: 0
A23: RD 20 | B23: 0 | C23: 0 | H23: RD 20 | I23: 0 | J23: 0 | O23: RD 20 | P23: 0 | Q23: 0
A24: RD 21 | B24: 0 | C24: 0 | H24: RD 21 | I24: 0 | J24: 0 | O24: RD 21 | P24: 0 | Q24: 0
A25: RD 22 | B25: 0 | C25: 0 | H25: RD 22 | I25: 0 | J25: 0 | O25: RD 22 | P25: 0 | Q25: 0
A26: RD 23 | B26: 0 | C26: 0 | H26: RD 23 | I26: 0 | J26: 0 | O26: RD 23 | P26: 0 | Q26: 0
A27: RD 24 | B27: 0 | C27: 0 | H27: RD 24 | I27: 0 | J27: 0 | O27: RD 24 | P27: 0 | Q27: 0
A28: RD 25 | B28: 0 | C28: 0 | H28: RD 25 | I28: 0 | J28: 0 | O28: RD 25 | P28: 0 | Q28: 0
A29: RD 26 | B29: 0 | C29: 0 | H29: RD 26 | I29: 0 | J29: 0 | O29: RD 26 | P29: 0 | Q29: 0
A30: RD 27 | B30: 0 | C30: 0 | H30: RD 27 | I30: 0 | J30: 0 | O30: RD 27 | P30: 0 | Q30: 0
A31: RD 28 | B31: 0 | C31: 0 | H31: RD 28 | I31: 0 | J31: 0 | O31: RD 28 | P31: 0 | Q31: 0
A32: RD 29 | B32: 0 | C32: 0 | E32: =IF(E4=0,"Sieg","") ->  | H32: RD 29 | I32: 0 | J32: 0 | L32: =IF(L4=0,"Sieg","") ->  | O32: RD 29 | P32: 0 | Q32: 0 | S32: =IF(S4=0,"Sieg","") -> 
A33: RD 30 | B33: 0 | C33: 0 | H33: RD 30 | I33: 0 | J33: 0 | O33: RD 30 | P33: 0 | Q33: 0
B34: =SUM(B4:B33) -> 0 | C34: =SUM(C4:C33) -> 0 | D34: =SUM(D4:D33) -> 0 | E34: =SUM(D4:D32) -> 0 | I34: =SUM(I4:I33) -> 0 | J34: =SUM(J4:J33) -> 0 | K34: =SUM(K4:K33) -> 0 | L34: =SUM(K4:K32) -> 0 | P34: =SUM(P4:P33) -> 0 | Q34: =SUM(Q4:Q33) -> 0 | R34: =SUM(R4:R33) -> 0 | S34: =SUM(R4:R32) -> 0
D45: =D1 -> Stefan | F45: =SUM(D34) -> 0 | K45: =INDEX(D45:E47,MATCH(MAX(F45:F47),F45:F47,0),1) -> Stefan
D46: =K1 -> Stefan | F46: =SUM(K34) -> 0 | K46: =INDEX(D45:E47,MATCH(MEDIAN(F45:F47),F45:F47,0),1) -> Stefan
D47: =R1 -> Stefan | F47: =SUM(S3) -> 0 | K47: =INDEX(D45:E47,MATCH(MIN(F45:F47),F45:F47,0),1) -> Stefan
D48: MAX(B2:B7 | F48: =MAX(F45:F47) -> 0

Sheet Rd10
D1: ='Rd9'!U3 -> Stefan | F1: Sp. 1 | K1: ='Rd9'!U2 -> Stefan | M1: Sp. 2 | R1: ='Rd9'!U1 -> Stefan | T1: Sp. 3 | U1: =K45 -> Stefan
D2: Punkte | E2: 501 | F2: Start | K2: Punkte | L2: 501 | M2: Start | R2: Punkte | S2: 501 | T2: Start | U2: =K46 -> Stefan
D3: Geworfen | E3: =SUM(D34) -> 0 | F3: Punkte | K3: Geworfen | L3: =SUM(K34) -> 0 | M3: Punkte | R3: Geworfen | S3: =SUM(R34) -> 0 | T3: Punkte | U3: Stefan
A4: RD 1 | B4: =COUNT(D4)*1 -> 0 | C4: =COUNT(D4)*3 -> 0 | E4: =SUM(E2-E3) -> 501 | F4: Rest | H4: RD 1 | I4: =COUNT(K4)*1 -> 0 | J4: =COUNT(K4)*3 -> 0 | L4: =SUM(L2-L3) -> 501 | M4: Rest | O4: RD 1 | P4: =COUNT(R4)*1 -> 0 | Q4: =COUNT(R4)*3 -> 0 | S4: =SUM(S2-S3) -> 501 | T4: Rest
A5: RD 2 | B5: 0 | C5: 0 | H5: RD 2 | I5: 0 | J5: 0 | O5: RD 2 | P5: 0 | Q5: 0
A6: RD 3 | B6: 0 | C6: 0 | E6: ø pro Spiel | F6: =SUM(E3)/B34 ->  | H6: RD 3 | I6: 0 | J6: 0 | L6: ø pro Spiel | M6: =SUM(L3)/I34 ->  | O6: RD 3 | P6: 0 | Q6: 0 | S6: ø pro Spiel | T6: =SUM(S3)/P34 -> 
A7: RD 4 | B7: 0 | C7: 0 | E7: ø pro Pfeil | F7: =SUM(E3)/C34 ->  | H7: RD 4 | I7: 0 | J7: 0 | L7: ø pro Pfeil | M7: =SUM(L3)/J34 ->  | O7: RD 4 | P7: 0 | Q7: 0 | S7: ø pro Pfeil | T7: =SUM(S3)/Q34 -> 
A8: RD 5 | B8: 0 | C8: 0 | E8: Average | H8: RD 5 | I8: 0 | J8: 0 | L8: Average | O8: RD 5 | P8: 0 | Q8: 0 | S8: Average
A9: RD 6 | B9: 0 | C9: 0 | E9: =SUM(F6) ->  | H9: RD 6 | I9: 0 | J9: 0 | L9: =SUM(M6) ->  | O9: RD 6 | P9: 0 | Q9: 0 | S9: =SUM(T6) -> 
A10: RD 7 | B10: 0 | C10: 0 | H10: RD 7 | I10: 0 | J10: 0 | O10: RD 7 | P10: 0 | Q10: 0
A11: RD 8 | B11: 0 | C11: 0 | E11: =IF(F6<40,"Nicht Gut","") ->  | H11: RD 8 | I11: 0 | J11: 0 | L11: =IF(M6<40,"Nicht Gut","") ->  | O11: RD 8 | P11: 0 | Q11: 0 | S11: =IF(T6<40,"Nicht Gut","") -> 
A12: RD 9 | B12: 0 | C12: 0 | H12: RD 9 | I12: 0 | J12: 0 | O12: RD 9 | P12: 0 | Q12: 0
A13: RD 10 | B13: 0 | C13: 0 | H13: RD 10 | I13: 0 | J13: 0 | O13: RD 10 | P13: 0 | Q13: 0
A14: RD 11 | B14: 0 | C14: 0 | E14: =IF(F6>40,"Gut","") ->  | H14: RD 11 | I14: 0 | J14: 0 | L14: =IF(M6>40,"Gut","") ->  | O14: RD 11 | P14: 0 | Q14: 0 | S14: =IF(T6>40,"Gut","") -> 
A15: RD 12 | B15: 0 | C15: 0 | H15: RD 12 | I15: 0 | J15: 0 | O15: RD 12 | P15: 0 | Q15: 0
A16: RD 13 | B16: 0 | C16: 0 | H16: RD 13 | I16: 0 | J16: 0 | O16: RD 13 | P16: 0 | Q16: 0
A17: RD 14 | B17: 0 | C17: 0 | H17: RD 14 | I17: 0 | J17: 0 | O17: RD 14 | P17: 0 | Q17: 0
A18: RD 15 | B18: 0 | C18: 0 | E18: =D1 -> Stefan | F18: =E4 -> 501 | H18: RD 15 | I18: 0 | J18: 0 | L18: =K1 -> Stefan | M18: =L4 -> 501 | O18: RD 15 | P18: 0 | Q18: 0 | S18: =R1 -> Stefan | T18: =S4 -> 501
A19: RD 16 | B19: 0 | C19: 0 | H19: RD 16 | I19: 0 | J19: 0 | O19: RD 16 | P19: 0 | Q19: 0
A20: RD 17 | B20: 0 | C20: 0 | E20: =IF(F6>50,"Sehr Gut","") ->  | H20: RD 17 | I20: 0 | J20: 0 | L20: =IF(M6>50,"Sehr Gut","") ->  | O20: RD 17 | P20: 0 | Q20: 0 | S20: =IF(T6>50,"Sehr Gut","") -> 
A21: RD 18 | B21: 0 | C21: 0 | H21: RD 18 | I21: 0 | J21: 0 | O21: RD 18 | P21: 0 | Q21: 0
A22: RD 19 | B22: 0 | C22: 0 | H22: RD 19 | I22: 0 | J22: 0 | O22: RD 19 | P22: 0 | Q22: 0
A23: RD 20 | B23: 0 | C23: 0 | H23: RD 20 | I23: 0 | J23: 0 | O23: RD 20 | P23: 0 | Q23: 0
A24: RD 21 | B24: 0 | C24: 0 | H24: RD 21 | I24: 0 | J24: 0 | O24: RD 21 | P24: 0 | Q24: 0
A25: RD 22 | B25: 0 | C25: 0 | H25: RD 22 | I25: 0 | J25: 0 | O25: RD 22 | P25: 0 | Q25: 0
A26: RD 23 | B26: 0 | C26: 0 | H26: RD 23 | I26: 0 | J26: 0 | O26: RD 23 | P26: 0 | Q26: 0
A27: RD 24 | B27: 0 | C27: 0 | H27: RD 24 | I27: 0 | J27: 0 | O27: RD 24 | P27: 0 | Q27: 0
A28: RD 25 | B28: 0 | C28: 0 | H28: RD 25 | I28: 0 | J28: 0 | O28: RD 25 | P28: 0 | Q28: 0
A29: RD 26 | B29: 0 | C29: 0 | H29: RD 26 | I29: 0 | J29: 0 | O29: RD 26 | P29: 0 | Q29: 0
A30: RD 27 | B30: 0 | C30: 0 | H30: RD 27 | I30: 0 | J30: 0 | O30: RD 27 | P30: 0 | Q30: 0
A31: RD 28 | B31: 0 | C31: 0 | H31: RD 28 | I31: 0 | J31: 0 | O31: RD 28 | P31: 0 | Q31: 0
A32: RD 29 | B32: 0 | C32: 0 | E32: =IF(E4=0,"Sieg","") ->  | H32: RD 29 | I32: 0 | J32: 0 | L32: =IF(L4=0,"Sieg","") ->  | O32: RD 29 | P32: 0 | Q32: 0 | S32: =IF(S4=0,"Sieg","") -> 
A33: RD 30 | B33: 0 | C33: 0 | H33: RD 30 | I33: 0 | J33: 0 | O33: RD 30 | P33: 0 | Q33: 0
B34: =SUM(B4:B33) -> 0 | C34: =SUM(C4:C33) -> 0 | D34: =SUM(D4:D33) -> 0 | E34: =SUM(D4:D32) -> 0 | I34: =SUM(I4:I33) -> 0 | J34: =SUM(J4:J33) -> 0 | K34: =SUM(K4:K33) -> 0 | L34: =SUM(K4:K32) -> 0 | P34: =SUM(P4:P33) -> 0 | Q34: =SUM(Q4:Q33) -> 0 | R34: =SUM(R4:R33) -> 0 | S34: =SUM(R4:R32) -> 0
D45: =D1 -> Stefan | F45: =SUM(D34) -> 0 | K45: =INDEX(D45:E47,MATCH(MAX(F45:F47),F45:F47,0),1) -> Stefan
D46: =K1 -> Stefan | F46: =SUM(K34) -> 0 | K46: =INDEX(D45:E47,MATCH(MEDIAN(F45:F47),F45:F47,0),1) -> Stefan
D47: =R1 -> Stefan | F47: =SUM(S3) -> 0 | K47: =INDEX(D45:E47,MATCH(MIN(F45:F47),F45:F47,0),1) -> Stefan
D48: MAX(B2:B7 | F48: =MAX(F45:F47) -> 0

Sheet Rd11
D1: ='Rd10'!U3 -> Stefan | F1: Sp. 1 | K1: ='Rd10'!U2 -> Stefan | M1: Sp. 2 | R1: ='Rd10'!U1 -> Stefan | T1: Sp. 3 | U1: =K45 -> Stefan
D2: Punkte | E2: 501 | F2: Start | K2: Punkte | L2: 501 | M2: Start | R2: Punkte | S2: 501 | T2: Start | U2: =K46 -> Stefan
D3: Geworfen | E3: =SUM(D34) -> 0 | F3: Punkte | K3: Geworfen | L3: =SUM(K34) -> 0 | M3: Punkte | R3: Geworfen | S3: =SUM(R34) -> 0 | T3: Punkte | U3: Stefan
A4: RD 1 | B4: =COUNT(D4)*1 -> 0 | C4: =COUNT(D4)*3 -> 0 | E4: =SUM(E2-E3) -> 501 | F4: Rest | H4: RD 1 | I4: =COUNT(K4)*1 -> 0 | J4: =COUNT(K4)*3 -> 0 | L4: =SUM(L2-L3) -> 501 | M4: Rest | O4: RD 1 | P4: =COUNT(R4)*1 -> 0 | Q4: =COUNT(R4)*3 -> 0 | S4: =SUM(S2-S3) -> 501 | T4: Rest
A5: RD 2 | B5: 0 | C5: 0 | H5: RD 2 | I5: 0 | J5: 0 | O5: RD 2 | P5: 0 | Q5: 0
A6: RD 3 | B6: 0 | C6: 0 | E6: ø pro Spiel | F6: =SUM(E3)/B34 ->  | H6: RD 3 | I6: 0 | J6: 0 | L6: ø pro Spiel | M6: =SUM(L3)/I34 ->  | O6: RD 3 | P6: 0 | Q6: 0 | S6: ø pro Spiel | T6: =SUM(S3)/P34 -> 
A7: RD 4 | B7: 0 | C7: 0 | E7: ø pro Pfeil | F7: =SUM(E3)/C34 ->  | H7: RD 4 | I7: 0 | J7: 0 | L7: ø pro Pfeil | M7: =SUM(L3)/J34 ->  | O7: RD 4 | P7: 0 | Q7: 0 | S7: ø pro Pfeil | T7: =SUM(S3)/Q34 -> 
A8: RD 5 | B8: 0 | C8: 0 | E8: Average | H8: RD 5 | I8: 0 | J8: 0 | L8: Average | O8: RD 5 | P8: 0 | Q8: 0 | S8: Average
A9: RD 6 | B9: 0 | C9: 0 | E9: =SUM(F6) ->  | H9: RD 6 | I9: 0 | J9: 0 | L9: =SUM(M6) ->  | O9: RD 6 | P9: 0 | Q9: 0 | S9: =SUM(T6) -> 
A10: RD 7 | B10: 0 | C10: 0 | H10: RD 7 | I10: 0 | J10: 0 | O10: RD 7 | P10: 0 | Q10: 0
A11: RD 8 | B11: 0 | C11: 0 | E11: =IF(F6<40,"Nicht Gut","") ->  | H11: RD 8 | I11: 0 | J11: 0 | L11: =IF(M6<40,"Nicht Gut","") ->  | O11: RD 8 | P11: 0 | Q11: 0 | S11: =IF(T6<40,"Nicht Gut","") -> 
A12: RD 9 | B12: 0 | C12: 0 | H12: RD 9 | I12: 0 | J12: 0 | O12: RD 9 | P12: 0 | Q12: 0
A13: RD 10 | B13: 0 | C13: 0 | H13: RD 10 | I13: 0 | J13: 0 | O13: RD 10 | P13: 0 | Q13: 0
A14: RD 11 | B14: 0 | C14: 0 | E14: =IF(F6>40,"Gut","") ->  | H14: RD 11 | I14: 0 | J14: 0 | L14: =IF(M6>40,"Gut","") ->  | O14: RD 11 | P14: 0 | Q14: 0 | S14: =IF(T6>40,"Gut","") -> 
A15: RD 12 | B15: 0 | C15: 0 | H15: RD 12 | I15: 0 | J15: 0 | O15: RD 12 | P15: 0 | Q15: 0
A16: RD 13 | B16: 0 | C16: 0 | H16: RD 13 | I16: 0 | J16: 0 | O16: RD 13 | P16: 0 | Q16: 0
A17: RD 14 | B17: 0 | C17: 0 | H17: RD 14 | I17: 0 | J17: 0 | O17: RD 14 | P17: 0 | Q17: 0
A18: RD 15 | B18: 0 | C18: 0 | E18: =D1 -> Stefan | F18: =E4 -> 501 | H18: RD 15 | I18: 0 | J18: 0 | L18: =K1 -> Stefan | M18: =L4 -> 501 | O18: RD 15 | P18: 0 | Q18: 0 | S18: =R1 -> Stefan | T18: =S4 -> 501
A19: RD 16 | B19: 0 | C19: 0 | H19: RD 16 | I19: 0 | J19: 0 | O19: RD 16 | P19: 0 | Q19: 0
A20: RD 17 | B20: 0 | C20: 0 | E20: =IF(F6>50,"Sehr Gut","") ->  | H20: RD 17 | I20: 0 | J20: 0 | L20: =IF(M6>50,"Sehr Gut","") ->  | O20: RD 17 | P20: 0 | Q20: 0 | S20: =IF(T6>50,"Sehr Gut","") -> 
A21: RD 18 | B21: 0 | C21: 0 | H21: RD 18 | I21: 0 | J21: 0 | O21: RD 18 | P21: 0 | Q21: 0
A22: RD 19 | B22: 0 | C22: 0 | H22: RD 19 | I22: 0 | J22: 0 | O22: RD 19 | P22: 0 | Q22: 0
A23: RD 20 | B23: 0 | C23: 0 | H23: RD 20 | I23: 0 | J23: 0 | O23: RD 20 | P23: 0 | Q23: 0
A24: RD 21 | B24: 0 | C24: 0 | H24: RD 21 | I24: 0 | J24: 0 | O24: RD 21 | P24: 0 | Q24: 0
A25: RD 22 | B25: 0 | C25: 0 | H25: RD 22 | I25: 0 | J25: 0 | O25: RD 22 | P25: 0 | Q25: 0
A26: RD 23 | B26: 0 | C26: 0 | H26: RD 23 | I26: 0 | J26: 0 | O26: RD 23 | P26: 0 | Q26: 0
A27: RD 24 | B27: 0 | C27: 0 | H27: RD 24 | I27: 0 | J27: 0 | O27: RD 24 | P27: 0 | Q27: 0
A28: RD 25 | B28: 0 | C28: 0 | H28: RD 25 | I28: 0 | J28: 0 | O28: RD 25 | P28: 0 | Q28: 0
A29: RD 26 | B29: 0 | C29: 0 | H29: RD 26 | I29: 0 | J29: 0 | O29: RD 26 | P29: 0 | Q29: 0
A30: RD 27 | B30: 0 | C30: 0 | H30: RD 27 | I30: 0 | J30: 0 | O30: RD 27 | P30: 0 | Q30: 0
A31: RD 28 | B31: 0 | C31: 0 | H31: RD 28 | I31: 0 | J31: 0 | O31: RD 28 | P31: 0 | Q31: 0
A32: RD 29 | B32: 0 | C32: 0 | E32: =IF(E4=0,"Sieg","") ->  | H32: RD 29 | I32: 0 | J32: 0 | L32: =IF(L4=0,"Sieg","") ->  | O32: RD 29 | P32: 0 | Q32: 0 | S32: =IF(S4=0,"Sieg","") -> 
A33: RD 30 | B33: 0 | C33: 0 | H33: RD 30 | I33: 0 | J33: 0 | O33: RD 30 | P33: 0 | Q33: 0
B34: =SUM(B4:B33) -> 0 | C34: =SUM(C4:C33) -> 0 | D34: =SUM(D4:D33) -> 0 | E34: =SUM(D4:D32) -> 0 | I34: =SUM(I4:I33) -> 0 | J34: =SUM(J4:J33) -> 0 | K34: =SUM(K4:K33) -> 0 | L34: =SUM(K4:K32) -> 0 | P34: =SUM(P4:P33) -> 0 | Q34: =SUM(Q4:Q33) -> 0 | R34: =SUM(R4:R33) -> 0 | S34: =SUM(R4:R32) -> 0
D45: =D1 -> Stefan | F45: =SUM(D34) -> 0 | K45: =INDEX(D45:E47,MATCH(MAX(F45:F47),F45:F47,0),1) -> Stefan
D46: =K1 -> Stefan | F46: =SUM(K34) -> 0 | K46: =INDEX(D45:E47,MATCH(MEDIAN(F45:F47),F45:F47,0),1) -> Stefan
D47: =R1 -> Stefan | F47: =SUM(S3) -> 0 | K47: =INDEX(D45:E47,MATCH(MIN(F45:F47),F45:F47,0),1) -> Stefan
D48: MAX(B2:B7 | F48: =MAX(F45:F47) -> 0

Sheet Rd12
D1: ='Rd11'!U3 -> Stefan | F1: Sp. 1 | K1: ='Rd11'!U2 -> Stefan | M1: Sp. 2 | R1: ='Rd11'!U1 -> Stefan | T1: Sp. 3 | U1: =K45 -> Stefan
D2: Punkte | E2: 501 | F2: Start | K2: Punkte | L2: 501 | M2: Start | R2: Punkte | S2: 501 | T2: Start | U2: =K46 -> Stefan
D3: Geworfen | E3: =SUM(D34) -> 0 | F3: Punkte | K3: Geworfen | L3: =SUM(K34) -> 0 | M3: Punkte | R3: Geworfen | S3: =SUM(R34) -> 0 | T3: Punkte | U3: Stefan
A4: RD 1 | B4: =COUNT(D4)*1 -> 0 | C4: =COUNT(D4)*3 -> 0 | E4: =SUM(E2-E3) -> 501 | F4: Rest | H4: RD 1 | I4: =COUNT(K4)*1 -> 0 | J4: =COUNT(K4)*3 -> 0 | L4: =SUM(L2-L3) -> 501 | M4: Rest | O4: RD 1 | P4: =COUNT(R4)*1 -> 0 | Q4: =COUNT(R4)*3 -> 0 | S4: =SUM(S2-S3) -> 501 | T4: Rest
A5: RD 2 | B5: 0 | C5: 0 | H5: RD 2 | I5: 0 | J5: 0 | O5: RD 2 | P5: 0 | Q5: 0
A6: RD 3 | B6: 0 | C6: 0 | E6: ø pro Spiel | F6: =SUM(E3)/B34 ->  | H6: RD 3 | I6: 0 | J6: 0 | L6: ø pro Spiel | M6: =SUM(L3)/I34 ->  | O6: RD 3 | P6: 0 | Q6: 0 | S6: ø pro Spiel | T6: =SUM(S3)/P34 -> 
A7: RD 4 | B7: 0 | C7: 0 | E7: ø pro Pfeil | F7: =SUM(E3)/C34 ->  | H7: RD 4 | I7: 0 | J7: 0 | L7: ø pro Pfeil | M7: =SUM(L3)/J34 ->  | O7: RD 4 | P7: 0 | Q7: 0 | S7: ø pro Pfeil | T7: =SUM(S3)/Q34 -> 
A8: RD 5 | B8: 0 | C8: 0 | E8: Average | H8: RD 5 | I8: 0 | J8: 0 | L8: Average | O8: RD 5 | P8: 0 | Q8: 0 | S8: Average
A9: RD 6 | B9: 0 | C9: 0 | E9: =SUM(F6) ->  | H9: RD 6 | I9: 0 | J9: 0 | L9: =SUM(M6) ->  | O9: RD 6 | P9: 0 | Q9: 0 | S9: =SUM(T6) -> 
A10: RD 7 | B10: 0 | C10: 0 | H10: RD 7 | I10: 0 | J10: 0 | O10: RD 7 | P10: 0 | Q10: 0
A11: RD 8 | B11: 0 | C11: 0 | E11: =IF(F6<40,"Nicht Gut","") ->  | H11: RD 8 | I11: 0 | J11: 0 | L11: =IF(M6<40,"Nicht Gut","") ->  | O11: RD 8 | P11: 0 | Q11: 0 | S11: =IF(T6<40,"Nicht Gut","") -> 
A12: RD 9 | B12: 0 | C12: 0 | H12: RD 9 | I12: 0 | J12: 0 | O12: RD 9 | P12: 0 | Q12: 0
A13: RD 10 | B13: 0 | C13: 0 | H13: RD 10 | I13: 0 | J13: 0 | O13: RD 10 | P13: 0 | Q13: 0
A14: RD 11 | B14: 0 | C14: 0 | E14: =IF(F6>40,"Gut","") ->  | H14: RD 11 | I14: 0 | J14: 0 | L14: =IF(M6>40,"Gut","") ->  | O14: RD 11 | P14: 0 | Q14: 0 | S14: =IF(T6>40,"Gut","") -> 
A15: RD 12 | B15: 0 | C15: 0 | H15: RD 12 | I15: 0 | J15: 0 | O15: RD 12 | P15: 0 | Q15: 0
A16: RD 13 | B16: 0 | C16: 0 | H16: RD 13 | I16: 0 | J16: 0 | O16: RD 13 | P16: 0 | Q16: 0
A17: RD 14 | B17: 0 | C17: 0 | H17: RD 14 | I17: 0 | J17: 0 | O17: RD 14 | P17: 0 | Q17: 0
A18: RD 15 | B18: 0 | C18: 0 | E18: =D1 -> Stefan | F18: =E4 -> 501 | H18: RD 15 | I18: 0 | J18: 0 | L18: =K1 -> Stefan | M18: =L4 -> 501 | O18: RD 15 | P18: 0 | Q18: 0 | S18: =R1 -> Stefan | T18: =S4 -> 501
A19: RD 16 | B19: 0 | C19: 0 | H19: RD 16 | I19: 0 | J19: 0 | O19: RD 16 | P19: 0 | Q19: 0
A20: RD 17 | B20: 0 | C20: 0 | E20: =IF(F6>50,"Sehr Gut","") ->  | H20: RD 17 | I20: 0 | J20: 0 | L20: =IF(M6>50,"Sehr Gut","") ->  | O20: RD 17 | P20: 0 | Q20: 0 | S20: =IF(T6>50,"Sehr Gut","") -> 
A21: RD 18 | B21: 0 | C21: 0 | H21: RD 18 | I21: 0 | J21: 0 | O21: RD 18 | P21: 0 | Q21: 0
A22: RD 19 | B22: 0 | C22: 0 | H22: RD 19 | I22: 0 | J22: 0 | O22: RD 19 | P22: 0 | Q22: 0
A23: RD 20 | B23: 0 | C23: 0 | H23: RD 20 | I23: 0 | J23: 0 | O23: RD 20 | P23: 0 | Q23: 0
A24: RD 21 | B24: 0 | C24: 0 | H24: RD 21 | I24: 0 | J24: 0 | O24: RD 21 | P24: 0 | Q24: 0
A25: RD 22 | B25: 0 | C25: 0 | H25: RD 22 | I25: 0 | J25: 0 | O25: RD 22 | P25: 0 | Q25: 0
A26: RD 23 | B26: 0 | C26: 0 | H26: RD 23 | I26: 0 | J26: 0 | O26: RD 23 | P26: 0 | Q26: 0
A27: RD 24 | B27: 0 | C27: 0 | H27: RD 24 | I27: 0 | J27: 0 | O27: RD 24 | P27: 0 | Q27: 0
A28: RD 25 | B28: 0 | C28: 0 | H28: RD 25 | I28: 0 | J28: 0 | O28: RD 25 | P28: 0 | Q28: 0
A29: RD 26 | B29: 0 | C29: 0 | H29: RD 26 | I29: 0 | J29: 0 | O29: RD 26 | P29: 0 | Q29: 0
A30: RD 27 | B30: 0 | C30: 0 | H30: RD 27 | I30: 0 | J30: 0 | O30: RD 27 | P30: 0 | Q30: 0
A31: RD 28 | B31: 0 | C31: 0 | H31: RD 28 | I31: 0 | J31: 0 | O31: RD 28 | P31: 0 | Q31: 0
A32: RD 29 | B32: 0 | C32: 0 | E32: =IF(E4=0,"Sieg","") ->  | H32: RD 29 | I32: 0 | J32: 0 | L32: =IF(L4=0,"Sieg","") ->  | O32: RD 29 | P32: 0 | Q32: 0 | S32: =IF(S4=0,"Sieg","") -> 
A33: RD 30 | B33: 0 | C33: 0 | H33: RD 30 | I33: 0 | J33: 0 | O33: RD 30 | P33: 0 | Q33: 0
B34: =SUM(B4:B33) -> 0 | C34: =SUM(C4:C33) -> 0 | D34: =SUM(D4:D33) -> 0 | E34: =SUM(D4:D32) -> 0 | I34: =SUM(I4:I33) -> 0 | J34: =SUM(J4:J33) -> 0 | K34: =SUM(K4:K33) -> 0 | L34: =SUM(K4:K32) -> 0 | P34: =SUM(P4:P33) -> 0 | Q34: =SUM(Q4:Q33) -> 0 | R34: =SUM(R4:R33) -> 0 | S34: =SUM(R4:R32) -> 0
D45: =D1 -> Stefan | F45: =SUM(D34) -> 0 | K45: =INDEX(D45:E47,MATCH(MAX(F45:F47),F45:F47,0),1) -> Stefan
D46: =K1 -> Stefan | F46: =SUM(K34) -> 0 | K46: =INDEX(D45:E47,MATCH(MEDIAN(F45:F47),F45:F47,0),1) -> Stefan
D47: =R1 -> Stefan | F47: =SUM(S3) -> 0 | K47: =INDEX(D45:E47,MATCH(MIN(F45:F47),F45:F47,0),1) -> Stefan
D48: MAX(B2:B7 | F48: =MAX(F45:F47) -> 0

Sheet Siegerliste
B1: Sieger
A3: Rd.1 | B3: ='Rd1'!K45 -> Thorsten
A4: Rd.2 | B4: ='Rd2'!K45 -> Stefan
A5: Rd.3 | B5: ='Rd3'!K45 -> Stefan
A6: Rd.4 | B6: ='Rd4'!K45 -> Stefan
A7: Rd.5 | B7: ='Rd5'!K45 -> Stefan
A8: Rd.6 | B8: ='Rd6'!K45 -> Stefan
A9: Rd.7 | B9: ='Rd7'!K45 -> Stefan
A10: Rd.8 | B10: ='Rd8'!K45 -> Stefan
A11: Rd.9 | B11: ='Rd9'!K45 -> Stefan
A12: Rd.10 | B12: ='Rd10'!K45 -> Stefan
A13: Rd.11 | B13: ='Rd11'!K45 -> Stefan
A14: Rd.12 | B14: ='Rd12'!K45 -> Stefan

Sheet Tabelle1
B1: Ralf Kl.
A2: Anja | B2: Volker
A3: Erich | B3: Rene
A4: Siggi | B4: Nicole
A5: Ralf M. | B5: Frank
A6: Ralf Kl. | B6: Rosi | E6: Ralf Kl.
A7: Volker | B7: Stefan | E7: Volker
A8: Rene | B8: Micha | E8: Rene
A9: Nicole | B9: Werner | E9: Nicole
A10: Frank | B10: Gast | E10: Frank
A11: Gast | B11: Vincent | E11: Rosi
A12: Anja/Erich | B12: Anja | E12: Werner
A13: Anja/Siggi | B13: Erich | E13: Gast
A14: Anja/Ralf M. | B14: Siggi
A15: Anja/Ralf Kl. | B15: Ralf M.
A16: Anja/Volker | B16: Dirk B.
A17: Anja/Rene
A18: Anja/Gast
A19: Erich/Siggi
A20: Erich/Ralf M.
A21: Erich/Ralf Kl.
A22: Erich/Volker
A23: Erich/Rene
A24: Erich/Gast
A25: Siggi/Ralf M.
A26: Siggi/Ralf Kl.
A27: Siggi/Volker
A28: Siggi/Rene
A29: Siggi/Gast
A30: Ralf M./Ralf Kl.
A31: Ralf M./Volker
A32: Ralf M./Rene
A33: Ralf M./Gast
A34: Ralf Kl./Volker
A35: Ralf Kl./Rene
A36: Ralf Kl./Gast
A37: Volker/Rene
A38: Rene/Gast
A39: Joker
A40: Anja/Nicole
A41: Anja/Frank
A42: Erich/Nicole
A43: Erich/Frank
A44: Siggi/Nicole
A45: Siggi/Frank
A46: Ralf M./Nicole
A47: Ralf M./Frank
A48: Nicole/Frank
